Workbook

Sheet SSHP Download (hidden)
A1: Rental Income - Tenant Payments | C1: 3100
A2: Rental Income - Excess of Base | C2: 3100.1
A3: Excess Utilities | C3: 3110
A4: Surcharges | C4: 3120
A5: Total Rental Income | C5: 3199
A6: Less: Dwelling Vacancy | C6: 3210
A7: Dwelling Vacancy Subsidy(Sec 8) | C7: 3220
A8: Net Rental Income | C8: 3299
A9: Non-Dwelling Rentals | C9: 3300
A10: Sales & Services to Tenants | C10: 3510
A11: Interest Income | C11: 3610
A12: Other Income | C12: 3620
A13: TOTAL EFFECTIVE GROSS INCOME | C13: 3999
A14: Salaries-Office | C14: 4120
A15: Compensated Absences - Adm Salaries | C15: 4120.1
A16: Legal&Other Outside Services | C16: 4130
A17: Legal Costs to Tenants | C17: 4130.1
A18: Fiscal and Other Fees | C18: 4131
A19: Consulting | C19: 4131.1
A20: Management Fees | C20: 4132
A21: Office Supplies | C21: 4151
A22: Rents | C22: 4152
A23: Travel | C23: 4153
A24: Other Office expense | C24: 4159
A25: Pensions & Other Funds | C25: 4160
A26: Payroll Taxes | C26: 4161
A27: TOTAL ADMIN. | C27: 4199
A28: Water | C28: 4310
A29: Electricity | C29: 4320
A30: Gas | C30: 4330
A31: Fuel | C31: 4340
A32: Cable Television | C32: 4350
A33: Sewer | C33: 4360
A34: TOTAL UTILITIES | C34: 4399
A35: Personal Services | C35: 4410
A36: Compensated Absences - Maint. Wages | C36: 4410.1
A37: Materials & Supplies | C37: 4420
A38: Contractual Services | C38: 4430
A39: Maintenance Shop & Equipment | C39: 4440
A40: TOTAL MAINTENANCE | C40: 4499
A41: Refuse Removal | C41: 4710
A42: Insurance | C42: 4711
A43: PILOT | C43: 4715
A44: State Service Charge | C44: 4716
A45: Interest Expense | C45: 4717
A46: Total Other Expense | C46: 4799
A47: TOTAL OPERATING EXP. | C47: 4999
A48: NET OPERATING INCOME | C48: 5999
A49: Provision for RM&R | C49: 4810
A50: Provision for Collection Loss | C50: 4820
A51: Princ. Pmnt - Mortgage | C51: 4910
A52: Princ. Pmnt - Rehab Loan | C52: 4920
A53: ROI | C53: 5000
A54: Extraordinary Income | C54: 6100
A55: Extraordinary Expense | C55: 6200
A56: NET RESULT OF OPERATIONS | C56: 6299
A57: Gain/Loss | C57: 6399

Sheet CHFA Download (hidden)
A1: Rent Revenue- Gross Potential | C1: 5120
A2: Tenant Assistance Payments (HAP Receipts) | C2: 5121
A3: Furniture and Equipment | C3: 5130
A4: Rent Revenue- Stores & Commercial | C4: 5140
A5: Rent Revenue- Garage & Parking | C5: 5170
A6: Flexible Subsidy Revenue | C6: 5180
A7: Miscellaneous Rent Revenue** | C7: 5190
A8: Excess Rent | C8: 5191
A9: Rent Revenue - Insurance | C9: 5192
A10: Special Claims Revenue | C10: 5193
A11: Retained Excess Income | C11: 5194
A12: Total Rent Revenue (GPI @ 100% Occupancy) | C12: 5100
A13: Apartments- Vacancy | C13: 5220
A14: Furniture and Equipment | C14: 5230
A15: Stores & Commercial- Vacancy | C15: 5240
A16: Rental Concessions | C16: 5250
A17: Garage & Parking- Vacancy | C17: 5270
A18: Miscellaneous** (other vacancy) | C18: 5290
A19: Total Vacancies | C19: 5200
A20: Net Rental Revenue ( Rent Revenue Less Vacancy) | C20: 5125
A21: Elderly & Congregate Service Income (attach schedule) | C21: 5300
A22: Financial Revenue-Project Operations | C22: 5410
A23: Revenue from Investments- Residual Receipts | C23: 5430
A24: Revenue from Investments- Replacement Reserves | C24: 5440
A25: Revenue from Investments- Miscellaneous ** | C25: 5490
A26: Total Financial Revenue | C26: 5400
A27: Laundry & Vending Revenue | C27: 5910
A28: NSF & Late Charges | C28: 5915
A29: Damages & Cleaning Fees | C29: 5930
A30: Forfeited Tenant Security Deposits | C30: 5940
A31: Interest Reduction Payments | C31: 5945
A32: Miscellaneous (Specify) ** | C32: 5990
A33: Total Other Revenue | C33: 5900
A34: Total Revenue | C34: 5000
A35: Conventions & Meetings | C35: 6203
A36: Management Consultants | C36: 6204
A37: Advertising & Marketing | C37: 6210
A38: Apartment Resale Expenses (Coops) | C38: 6235
A39: Other Renting Expenses | C39: 6250
A40: Office Salaries | C40: 6310
A41: Office Supplies | C41: 6315
A42: Office or Model Apartment Rent | C42: 6312
A43: Management Fee | C43: 6320
A44: Manager or Superintendent Salaries | C44: 6330
A45: Administrative Rent Free Unit | C45: 6331
A46: Legal Expense (Project) | C46: 6340
A47: Audit Expense | C47: 6350
A48: Bookkeeping Fees/Accounting Services | C48: 6351
A49: Telephone/Answering Service | C49: 6360
A50: Bad Debts | C50: 6370
A51: Miscellaneous Administrative Expenses ** | C51: 6390
A52: Total Administrative Expenses | C52: 6263
A53: Fuel Oil/ Coal | C53: 6420
A54: Electricity | C54: 6450
A55: Water | C55: 6451
A56: Gas | C56: 6452
A57: Sewer | C57: 6453
A58: Total Utilities Expense | C58: 6400
A59: Janitor and Cleaning Payroll | C59: 6511
A60: Janitor and Cleaning Supplies | C60: 6516
A61: Janitor and Cleaning Contracts | C61: 6517
A62: Exterminating Payroll/Contracts | C62: 6519
A63: Operating & Maintenance Rent Free Unit | C63: 6521
A64: Exterminating Supplies | C64: 6522
A65: Garbage & Trash Removal | C65: 6525
A66: Security Payroll/ Contracts | C66: 6530
A67: Security Rent Free Unit | C67: 6531
A68: Grounds Payroll | C68: 6535
A69: Grounds Supplies | C69: 6536
A70: Grounds Contract | C70: 6537
A71: Maintenance Payroll | C71: 6540
A72: Repairs Material | C72: 6541
A73: Repairs Contract | C73: 6542
A74: Elevator Maintenance/Contract | C74: 6545
A75: Heating & AC Maintenance/Repairs | C75: 6546
A76: Pool Maintenance/Contract | C76: 6547
A77: Snow Removal | C77: 6548
A78: Decorating (Painting) Contract/Payroll | C78: 6560
A79: Decorating Supplies | C79: 6561
A80: Vechicle & Maintenance Equipment Oper. & Repairs | C80: 6570
A81: Miscellaneous Oper. & Maintenance Expenses | C81: 6590
A82: Total Operating & Maintenance Expenses | C82: 6500
A83: Real Estate Taxes | C83: 6710
A84: Employers Payroll Taxes (Project Share) | C84: 6711
A85: Miscellaneous Taxes, Licenses & Permits | C85: 6719
A86: Property & Liability Insurance | C86: 6720
A87: Fidelity Bond Insurance | C87: 6721
A88: Workmens Compennsation | C88: 6722
A89: Employee Health & Life Insurance | C89: 6723
A90: Other Insurance | C90: 6790
A91: Total Taxes & Insurance | C91: 6700
A92: Interest on Bonds Payable | C92: 6810
A93: Interest on Mortgage Payable | C93: 6820
A94: Interest on Notes Payable Long Term | C94: 6830
A95: Interest on Notes Payable Short Term | C95: 6840
A96: Mortgage Insurance Premium/Service Charge | C96: 6850
A97: Miscellaneous Fiancial Expenses | C97: 6890
A98: Total Financial Expenses | C98: 6800
A99: Elderly & Congregate Service Expenses | C99: 6900
A100: Total Cost of OPS before Depreciation | C100: 6000
A101: Profit (Loss) Before Depreciation | C101: 5060
A102: Depreciation Expense | C102: 6600
A103: Amoritization Expense | C103: 6610
A104: Total Depreciation & Amortization Expense | C104: 6611
A105: Operating Profit or Loss | C105: 5061
A106: Officers Saleries (Entity) | C106: 7110
A107: Legal Expense (Entity) | C107: 7120
A108: Federal, State & Other Income Taxes (Entity) | C108: 7130
A109: Interest Income (Entity) | C109: 7140
A110: Interest on Notes Payable (Entity) | C110: 7141
A111: Interest on Mortgage Payable (Entity) | C111: 7142
A112: Other Expenses (Entity) | C112: 7190
A113: Net Entity Expenses | C113: 7100
A114: Net Profit (Loss) | C114: 3250
A115: Principal Mortgage Payment (Schedule) | C115: 1301
A116: Replacement Reserve Deposits | C116: 1302
A117: Replacement/Paint Reserve Releases included as exp. | C117: 1303
A118: Project Improvement Reserve Releases | C118: 1304
A119: Cash & AR/AP - Quick Ratio | C119: 9991
A120: Cashflow/AP - Coverage Ratio | C120: 9992

Sheet 5yr SSHP History
A1: 5 Year Income & Expense Comparison
A2: Property:
E3: % | G3: % | I3: % | K3: % | O3: Current Approved Budget | P3: Actual Annualized | Q3: Current Operating # of months | R3: Application Proforma
A4: Account Description | C4: Account # | D4: 2018 | E4: Change | F4: =D4-1 -> 2017 | G4: Change | H4: =F4-1 -> 2016 | I4: Change | J4: =H4-1 -> 2015 | K4: Change | L4: =J4-1 -> 2014 | M4: Average | O4: 2019 | P4: 2019 | Q4: 3
A6: Rental Income - Base Rent | C6: 3100 | M6: =IF(SUM(L6+J6+H6+F6+D6)<>0,AVERAGE(L6,J6,H6,F6,D6),0) -> 0 | O6: 0 | P6: =IF(+Q6<>0,+(+Q6/$Q$4)*12,0) -> 0 | Q6: 0 | R6: 0
A7: Rental Income - Excess of Base | C7: 3100.1 | M7: =IF(SUM(L7+J7+H7+F7+D7)<>0,AVERAGE(L7,J7,H7,F7,D7),0) -> 0 | O7: 0 | P7: =IF(+Q7<>0,+(+Q7/$Q$4)*12,0) -> 0 | Q7: 0 | R7: 0
A8: Excess Utilities | C8: 3110 | M8: 0 | O8: 0 | P8: 0 | Q8: 0 | R8: 0
A9: Surcharges | C9: 3120 | M9: 0 | O9: 0 | P9: 0 | Q9: 0 | R9: 0
A10: Total Rental Income | C10: 3199 | M10: 0 | O10: =SUM(O6:O9) -> 0 | P10: 0 | Q10: =SUM(Q6:Q9) -> 0 | R10: =SUM(R6:R9) -> 0
A11: Less: Dwelling Vacancy | C11: 3210 | M11: 0 | O11: 0 | P11: 0 | Q11: 0 | R11: 0
A12: Dwelling Vacancy Subsidy(Sec 8) | C12: 3220 | M12: 0 | O12: 0 | P12: 0 | Q12: 0 | R12: 0
A13: Net Rental Income | C13: 3299 | M13: 0 | O13: =SUM(O11:O12) -> 0 | P13: 0 | Q13: =SUM(Q11:Q12) -> 0 | R13: =SUM(R11:R12) -> 0
A14: Non-Dwelling Rentals | C14: 3300 | M14: 0 | O14: 0 | P14: 0 | Q14: 0 | R14: 0
A15: Sales & Services to Tenants | C15: 3510 | M15: 0 | O15: 0 | P15: 0 | Q15: 0 | R15: 0
A16: Interest Income | C16: 3610 | M16: 0 | O16: 0 | P16: 0 | Q16: 0 | R16: 0
A17: Other Income | C17: 3620 | M17: 0 | O17: 0 | P17: 0 | Q17: 0 | R17: 0
A18: TOTAL EFFECTIVE GROSS INCOME | C18: 3999 | M18: 0 | O18: =+O10+O13+O14+O15+O16+O17 -> 0 | P18: 0 | Q18: =+Q10+Q13+Q14+Q15+Q16+Q17 -> 0 | R18: =+R10+R13+R14+R15+R16+R17 -> 0
A19: Salaries-Office | C19: 4120 | M19: 0 | O19: 0 | P19: 0 | Q19: 0 | R19: 0
A20: Compensated Absences - Adm Salaries | C20: 4120.1 | M20: 0 | O20: 0 | P20: 0 | Q20: 0 | R20: 0
A21: Legal&Other Outside Services | C21: 4130 | M21: 0 | O21: 0 | P21: 0 | Q21: 0 | R21: 0
A22: Legal Costs to Tenants | C22: 4130.1 | M22: 0 | O22: 0 | P22: 0 | Q22: 0 | R22: 0
A23: Fiscal and Other Fees | C23: 4131 | M23: 0 | O23: 0 | P23: 0 | Q23: 0 | R23: 0
A24: Consulting | C24: 4131.1 | M24: 0 | O24: 0 | P24: 0 | Q24: 0 | R24: 0
A25: Management Fees | C25: 4132 | M25: 0 | O25: 0 | P25: 0 | Q25: 0 | R25: 0
A26: Office Supplies | C26: 4151 | M26: 0 | O26: 0 | P26: 0 | Q26: 0 | R26: 0
A27: Rents | C27: 4152 | M27: 0 | O27: 0 | P27: 0 | Q27: 0 | R27: 0
A28: Travel | C28: 4153 | M28: 0 | O28: 0 | P28: 0 | Q28: 0 | R28: 0
A29: Other Office expense | C29: 4159 | M29: 0 | O29: 0 | P29: 0 | Q29: 0 | R29: 0
A30: Pensions & Other Funds | C30: 4160 | M30: 0 | O30: 0 | P30: 0 | Q30: 0 | R30: 0
A31: Payroll Taxes | C31: 4161 | M31: 0 | O31: 0 | P31: 0 | Q31: 0 | R31: 0
A32: TOTAL ADMIN. | C32: 4199 | M32: 0 | O32: =SUM(O19:O31) -> 0 | P32: 0 | Q32: =SUM(Q19:Q31) -> 0 | R32: =SUM(R19:R31) -> 0
A33: Water | C33: 4310 | M33: 0 | O33: 0 | P33: 0 | Q33: 0 | R33: 0
A34: Electricity | C34: 4320 | M34: 0 | O34: 0 | P34: 0 | Q34: 0 | R34: 0
A35: Gas | C35: 4330 | M35: 0 | O35: 0 | P35: 0 | Q35: 0 | R35: 0
A36: Fuel | C36: 4340 | M36: 0 | O36: 0 | P36: 0 | Q36: 0 | R36: 0
A37: Cable Television | C37: 4350 | M37: 0 | O37: 0 | P37: 0 | Q37: 0 | R37: 0
A38: Sewer | C38: 4360 | M38: 0 | O38: 0 | P38: 0 | Q38: 0 | R38: 0
A39: TOTAL UTILITIES | C39: 4399 | M39: 0 | O39: =SUM(O33:O38) -> 0 | P39: 0 | Q39: =SUM(Q33:Q38) -> 0 | R39: =SUM(R33:R38) -> 0
A40: Personal Services | C40: 4410 | M40: 0 | O40: 0 | P40: 0 | Q40: 0 | R40: 0
A41: Compensated Absences - Maint. Wages | C41: 4410.1 | M41: 0 | O41: 0 | P41: 0 | Q41: 0 | R41: 0
A42: Materials & Supplies | C42: 4420 | M42: 0 | O42: 0 | P42: 0 | Q42: 0 | R42: 0
A43: Contractual Services | C43: 4430 | M43: 0 | O43: 0 | P43: 0 | Q43: 0 | R43: 0
A44: Maintenance Shop & Equipment | C44: 4440 | M44: 0 | O44: 0 | P44: 0 | Q44: 0 | R44: 0
A45: TOTAL MAINTENANCE | C45: 4499 | M45: 0 | O45: =SUM(O40:O44) -> 0 | P45: 0 | Q45: =SUM(Q40:Q44) -> 0 | R45: =SUM(R40:R44) -> 0
A46: Refuse Removal | C46: 4710 | M46: 0 | O46: 0 | P46: 0 | Q46: 0 | R46: 0
A47: Insurance | C47: 4711 | M47: 0 | O47: 0 | P47: 0 | Q47: 0 | R47: 0
A48: PILOT | C48: 4715 | M48: 0 | O48: 0 | P48: 0 | Q48: 0 | R48: 0
A49: State Service Charge | C49: 4716 | M49: 0 | O49: 0 | P49: 0 | Q49: 0 | R49: 0
A50: Interest Expense | C50: 4717 | M50: 0 | O50: 0 | P50: 0 | Q50: 0 | R50: 0
A51: Total Other Expense | C51: 4799 | M51: 0 | O51: =SUM(O46:O50) -> 0 | P51: 0 | Q51: =SUM(Q46:Q50) -> 0 | R51: =SUM(R46:R50) -> 0
A52: TOTAL OPERATING EXP. | C52: 4999 | M52: 0 | O52: =+O51+O45+O39+O32 -> 0 | P52: 0 | Q52: =+Q51+Q45+Q39+Q32 -> 0 | R52: =+R51+R45+R39+R32 -> 0
A53: NET OPERATING INCOME | C53: 5999 | M53: 0 | O53: =+O18-O52 -> 0 | P53: 0 | Q53: =+Q18-Q52 -> 0 | R53: =+R18-R52 -> 0
A54: Provision for RM&R | C54: 4810 | M54: 0 | O54: 0 | P54: 0 | Q54: 0 | R54: 0
A55: Provision for Collection Loss | C55: 4820 | M55: 0 | O55: 0 | P55: 0 | Q55: 0 | R55: 0
A56: Princ. Pmnt - Mortgage | C56: 4910 | M56: 0 | O56: 0 | P56: 0 | Q56: 0 | R56: 0
A57: Princ. Pmnt - Rehab Loan | C57: 4920 | M57: 0 | O57: 0 | P57: 0 | Q57: 0 | R57: 0
A58: ROI | C58: 5000 | M58: 0 | O58: 0 | P58: 0 | Q58: 0 | R58: 0
A59: Extraordinary Income | C59: 6100 | M59: 0 | O59: 0 | P59: 0 | Q59: 0 | R59: 0
A60: Extraordinary Expense | C60: 6200 | M60: 0 | O60: 0 | P60: 0 | Q60: 0 | R60: 0
A61: NET RESULT OF OPERATIONS | C61: 6299 | M61: 0 | O61: =+O53-O54-O55-O56-O57-O58+O59-O60 -> 0 | P61: 0 | Q61: =+Q53-Q54-Q55-Q56-Q57-Q58+Q59-Q60 -> 0 | R61: =+R53-R54-R55-R56-R57-R58+R59-R60 -> 0
A62: Gain/Loss | C62: 6399 | M62: 0 | O62: =+O61 -> 0 | P62: 0 | Q62: =+Q61 -> 0 | R62: =+R61 -> 0
B64: = cells not carried forward to cashflow page

Sheet 5yr CHFA History (hidden)
A1: 5 Year Income & Expense Comparison
A2: Property: | O2: Current Approved | P2: Actual | Q2: Current Operating
E3: % | G3: % | I3: % | K3: % | O3: Budget | P3: Annualized | Q3: # Months | R3: Proforma
A4: Account Description | C4: Account # | D4: 2016 | E4: Change | F4: =D4-1 -> 2015 | G4: Change | H4: =F4-1 -> 2014 | I4: Change | J4: =H4-1 -> 2013 | K4: Change | L4: =J4-1 -> 2012 | M4: Average
A6: Rent Revenue- Gross Potential | C6: 5120 | M6: =IF(SUM(L6+J6+H6+F6+D6)<>0,AVERAGE(L6,J6,H6,F6,D6),0) -> 0 | P6: =IF(Q6<>0,(+Q6/$Q$4)*12,0) -> 0 | R6: 0
A7: Tenant Assistance Payments (HAP Receipts) | C7: 5121 | M7: =IF(SUM(L7+J7+H7+F7+D7)<>0,AVERAGE(L7,J7,H7,F7,D7),0) -> 0 | P7: =IF(Q7<>0,(+Q7/$Q$4)*12,0) -> 0 | R7: 0
A8: Furniture and Equipment | C8: 5130 | M8: 0 | P8: 0 | R8: 0
A9: Rent Revenue- Stores & Commercial | C9: 5140 | M9: 0 | P9: 0 | R9: 0
A10: Rent Revenue- Garage & Parking | C10: 5170 | M10: 0 | P10: 0 | R10: 0
A11: Flexible Subsidy Revenue | C11: 5180 | M11: 0 | P11: 0 | R11: 0
A12: Miscellaneous Rent Revenue** | C12: 5190 | M12: 0 | P12: 0 | R12: 0
A13: Excess Rent | C13: 5191 | M13: 0 | P13: 0 | R13: 0
A14: Rent Revenue - Insurance | C14: 5192 | M14: 0 | P14: 0 | R14: 0
A15: Special Claims Revenue | C15: 5193 | M15: 0 | P15: 0 | R15: 0
A16: Retained Excess Income | C16: 5194 | M16: 0 | P16: 0 | R16: 0
A17: Total Rent Revenue (GPI @ 100% Occupancy) | C17: 5100 | M17: 0 | O17: =SUM(O6:O16) -> 0 | P17: 0 | Q17: =SUM(Q6:Q16) -> 0 | R17: =SUM(R6:R16) -> 0
A18: Apartments- Vacancy | C18: 5220 | M18: 0 | P18: 0 | R18: 0
A19: Furniture and Equipment | C19: 5230 | M19: 0 | P19: 0 | R19: 0
A20: Stores & Commercial- Vacancy | C20: 5240 | M20: 0 | P20: 0 | R20: 0
A21: Rental Concessions | C21: 5250 | M21: 0 | P21: 0 | R21: 0
A22: Garage & Parking- Vacancy | C22: 5270 | M22: 0 | P22: 0 | R22: 0
A23: Miscellaneous** (other vacancy) | C23: 5290 | M23: 0 | P23: 0 | R23: 0
A24: Total Vacancies | C24: 5200 | M24: 0 | O24: =SUM(O18:O23) -> 0 | P24: 0 | Q24: =SUM(Q18:Q23) -> 0 | R24: 0
A25: Net Rental Revenue ( Rent Revenue Less Vacancy) | C25: 5125 | M25: 0 | O25: =+O17-O24 -> 0 | P25: 0 | Q25: =+Q17-Q24 -> 0 | R25: =+R17-R24 -> 0
A26: Elderly & Congregate Service Income (attach schedule) | C26: 5300 | M26: 0 | P26: 0 | R26: 0
A27: Financial Revenue-Project Operations | C27: 5410 | M27: 0 | P27: 0 | R27: 0
A28: Revenue from Investments- Residual Receipts | C28: 5430 | M28: 0 | P28: 0 | R28: 0
A29: Revenue from Investments- Replacement Reserves | C29: 5440 | M29: 0 | P29: 0 | R29: 0
A30: Revenue from Investments- Miscellaneous ** | C30: 5490 | M30: 0 | P30: 0 | R30: 0
A31: Total Financial Revenue | C31: 5400 | M31: 0 | O31: =SUM(O27:O30) -> 0 | P31: 0 | Q31: =SUM(Q27:Q30) -> 0 | R31: =SUM(R27:R30) -> 0
A32: Laundry & Vending Revenue | C32: 5910 | M32: 0 | P32: 0 | R32: 0
A33: NSF & Late Charges | C33: 5915 | M33: 0 | P33: 0 | R33: 0
A34: Damages & Cleaning Fees | C34: 5930 | M34: 0 | P34: 0 | R34: 0
A35: Forfeited Tenant Security Deposits | C35: 5940 | M35: 0 | P35: 0 | R35: 0
A36: Interest Reduction Payments | C36: 5945 | M36: 0 | P36: 0 | R36: 0
A37: Miscellaneous (Specify) ** | C37: 5990 | M37: 0 | P37: 0 | R37: 0
A38: Total Other Revenue | C38: 5900 | M38: 0 | O38: =SUM(O32:O37) -> 0 | P38: 0 | Q38: =SUM(Q32:Q37) -> 0 | R38: =SUM(R32:R37) -> 0
A39: Total Revenue | C39: 5000 | M39: 0 | O39: =+O25+O31+O38 -> 0 | P39: 0 | Q39: =+Q25+Q31+Q38 -> 0 | R39: =+R25+R31+R38 -> 0
A40: Conventions & Meetings | C40: 6203 | M40: 0 | P40: 0 | R40: 0
A41: Management Consultants | C41: 6204 | M41: 0 | P41: 0 | R41: 0
A42: Advertising & Marketing | C42: 6210 | M42: 0 | P42: 0 | R42: 0
A43: Apartment Resale Expenses (Coops) | C43: 6235 | M43: 0 | P43: 0 | R43: 0
A44: Other Renting Expenses | C44: 6250 | M44: 0 | P44: 0 | R44: 0
A45: Office Salaries | C45: 6310 | M45: 0 | P45: 0 | R45: 0
A46: Office Supplies | C46: 6315 | M46: 0 | P46: 0 | R46: 0
A47: Office or Model Apartment Rent | C47: 6312 | M47: 0 | P47: 0 | R47: 0
A48: Management Fee | C48: 6320 | M48: 0 | P48: 0 | R48: 0
A49: Manager or Superintendent Salaries | C49: 6330 | M49: 0 | P49: 0 | R49: 0
A50: Administrative Rent Free Unit | C50: 6331 | M50: 0 | P50: 0 | R50: 0
A51: Legal Expense (Project) | C51: 6340 | M51: 0 | P51: 0 | R51: 0
A52: Audit Expense | C52: 6350 | M52: 0 | P52: 0 | R52: 0
A53: Bookkeeping Fees/Accounting Services | C53: 6351 | M53: 0 | P53: 0 | R53: 0
A54: Telephone/Answering Service | C54: 6360 | M54: 0 | P54: 0 | R54: 0
A55: Bad Debts | C55: 6370 | M55: 0 | P55: 0 | R55: 0
A56: Miscellaneous Administrative Expenses ** | C56: 6390 | M56: 0 | P56: 0 | R56: 0
A57: Total Administrative Expenses | C57: 6263 | M57: 0 | O57: =SUM(O40:O56) -> 0 | P57: 0 | Q57: =SUM(Q40:Q56) -> 0 | R57: =SUM(R40:R56) -> 0
A58: Fuel Oil/ Coal | C58: 6420 | M58: 0 | P58: 0 | R58: 0
A59: Electricity | C59: 6450 | M59: 0 | P59: 0 | R59: 0
A60: Water | C60: 6451 | M60: 0 | P60: 0 | R60: 0
A61: Gas | C61: 6452 | M61: 0 | P61: 0 | R61: 0
A62: Sewer | C62: 6453 | M62: 0 | P62: 0 | R62: 0
A63: Total Utilities Expense | C63: 6400 | M63: 0 | O63: =SUM(O58:O62) -> 0 | P63: 0 | Q63: =SUM(Q58:Q62) -> 0 | R63: =SUM(R58:R62) -> 0
A64: Janitor and Cleaning Payroll | C64: 6511 | M64: 0 | P64: 0 | R64: 0
A65: Janitor and Cleaning Supplies | C65: 6516 | M65: 0 | P65: 0 | R65: 0
A66: Janitor and Cleaning Contracts | C66: 6517 | M66: 0 | P66: 0 | R66: 0
A67: Exterminating Payroll/Contracts | C67: 6519 | M67: 0 | P67: 0 | R67: 0
A68: Operating & Maintenance Rent Free Unit | C68: 6521 | M68: 0 | P68: 0 | R68: 0
A69: Exterminating Supplies | C69: 6522 | M69: 0 | P69: 0 | R69: 0
A70: Garbage & Trash Removal | C70: 6525 | M70: 0 | P70: 0 | R70: 0
A71: Security Payroll/ Contracts | C71: 6530 | M71: =IF(SUM(L71+J71+H71+F71+D71)<>0,AVERAGE(L71,J71,H71,F71,D71),0) -> 0 | P71: =IF(Q71<>0,(+Q71/$Q$4)*12,0) -> 0 | R71: 0
A72: Security Rent Free Unit | C72: 6531 | M72: 0 | P72: 0 | R72: 0
A73: Grounds Payroll | C73: 6535 | M73: 0 | P73: 0 | R73: 0
A74: Grounds Supplies | C74: 6536 | M74: 0 | P74: 0 | R74: 0
A75: Grounds Contract | C75: 6537 | M75: 0 | P75: 0 | R75: 0
A76: Maintenance Payroll | C76: 6540 | M76: 0 | P76: 0 | R76: 0
A77: Repairs Material | C77: 6541 | M77: 0 | P77: 0 | R77: 0
A78: Repairs Contract | C78: 6542 | M78: 0 | P78: 0 | R78: 0
A79: Elevator Maintenance/Contract | C79: 6545 | M79: 0 | P79: 0 | R79: 0
A80: Heating & AC Maintenance/Repairs | C80: 6546 | M80: 0 | P80: 0 | R80: 0
A81: Pool Maintenance/Contract | C81: 6547 | M81: 0 | P81: 0 | R81: 0
A82: Snow Removal | C82: 6548 | M82: 0 | P82: 0 | R82: 0
A83: Decorating (Painting) Contract/Payroll | C83: 6560 | M83: 0 | P83: 0 | R83: 0
A84: Decorating Supplies | C84: 6561 | M84: 0 | P84: 0 | R84: 0
A85: Vechicle & Maintenance Equipment Oper. & Repairs | C85: 6570 | M85: 0 | P85: 0 | R85: 0
A86: Miscellaneous Oper. & Maintenance Expenses | C86: 6590 | M86: 0 | P86: 0 | R86: 0
A87: Total Operating & Maintenance Expenses | C87: 6500 | M87: 0 | O87: =SUM(O64:O86) -> 0 | P87: 0 | Q87: =SUM(Q64:Q86) -> 0 | R87: =SUM(R64:R86) -> 0
A88: Real Estate Taxes | C88: 6710 | M88: 0 | P88: 0 | R88: 0
A89: Employers Payroll Taxes (Project Share) | C89: 6711 | M89: 0 | P89: 0 | R89: 0
A90: Miscellaneous Taxes, Licenses & Permits | C90: 6719 | M90: 0 | P90: 0 | R90: 0
A91: Property & Liability Insurance | C91: 6720 | M91: 0 | P91: 0 | R91: 0
A92: Fidelity Bond Insurance | C92: 6721 | M92: 0 | P92: 0 | R92: 0
A93: Workmens Compennsation | C93: 6722 | M93: 0 | P93: 0 | R93: 0
A94: Employee Health & Life Insurance | C94: 6723 | M94: 0 | P94: 0 | R94: 0
A95: Other Insurance | C95: 6790 | M95: 0 | P95: 0 | R95: 0
A96: Total Taxes & Insurance | C96: 6700 | M96: 0 | O96: =SUM(O88:O95) -> 0 | P96: 0 | Q96: =SUM(Q88:Q95) -> 0 | R96: =SUM(R88:R95) -> 0
A97: Interest on Bonds Payable | C97: 6810 | M97: 0 | P97: 0 | R97: 0
A98: Interest on Mortgage Payable | C98: 6820 | M98: 0 | P98: 0 | R98: 0
A99: Interest on Notes Payable Long Term | C99: 6830 | M99: 0 | P99: 0 | R99: 0
A100: Interest on Notes Payable Short Term | C100: 6840 | M100: 0 | P100: 0 | R100: 0
A101: Mortgage Insurance Premium/Service Charge | C101: 6850 | M101: 0 | P101: 0 | R101: 0
A102: Miscellaneous Fiancial Expenses | C102: 6890 | M102: 0 | P102: 0 | R102: 0
A103: Total Financial Expenses | C103: 6800 | M103: 0 | O103: =SUM(O97:O102) -> 0 | P103: 0 | Q103: =SUM(Q97:Q102) -> 0 | R103: =SUM(R97:R102) -> 0
A104: Elderly & Congregate Service Expenses | C104: 6900 | M104: 0 | P104: 0
A105: Total Cost of OPS before Depreciation | C105: 6000 | M105: 0 | O105: =O104+O96+O87+O63+O57+O103 -> 0 | P105: 0 | Q105: =Q104+Q96+Q87+Q63+Q57+Q103 -> 0 | R105: =R104+R96+R87+R63+R57+R103 -> 0
A106: Profit (Loss) Before Depreciation | C106: 5060 | M106: 0 | O106: =+O39-O105 -> 0 | P106: 0 | Q106: =+Q39-Q105 -> 0 | R106: =+R39-R105 -> 0
A107: Depreciation Expense | C107: 6600 | M107: 0 | P107: 0
A108: Amoritization Expense | C108: 6610 | M108: 0 | P108: 0
A109: Total Depreciation & Amortization Expense | C109: 6611 | M109: 0 | O109: =SUM(O107:O108) -> 0 | P109: 0 | Q109: =SUM(Q107:Q108) -> 0 | R109: =SUM(R107:R108) -> 0
A110: Operating Profit or Loss | C110: 5061 | M110: 0 | O110: =+O106-O109 -> 0 | P110: 0 | Q110: =+Q106-Q109 -> 0 | R110: =+R106-R109 -> 0
A111: Officers Saleries (Entity) | C111: 7110 | M111: 0 | P111: 0
A112: Legal Expense (Entity) | C112: 7120 | M112: 0 | P112: 0
A113: Federal, State & Other Income Taxes (Entity) | C113: 7130 | M113: 0 | P113: 0
A114: Interest Income (Entity) | C114: 7140 | M114: 0 | P114: 0
A115: Interest on Notes Payable (Entity) | C115: 7141 | M115: 0 | P115: 0
A116: Interest on Mortgage Payable (Entity) | C116: 7142 | M116: 0 | P116: 0
A117: Other Expenses (Entity) | C117: 7190 | M117: 0 | P117: 0
A118: Net Entity Expenses | C118: 7100 | M118: 0 | O118: =SUM(O111:O117) -> 0 | P118: 0 | Q118: =SUM(Q111:Q117) -> 0 | R118: =SUM(R111:R117) -> 0
A119: Net Profit (Loss) | C119: 3250 | M119: 0 | O119: =+O110-O118 -> 0 | P119: 0 | Q119: =+Q110-Q118 -> 0 | R119: =+R110-R118 -> 0
A120: Principal Mortgage Payment (Schedule) | C120: 1301 | M120: 0 | P120: 0
A121: Replacement Reserve Deposits | C121: 1302 | M121: 0 | P121: 0
A122: Replacement/Paint Reserve Releases included as exp. | C122: 1303 | M122: 0 | P122: 0
A123: Project Improvement Reserve Releases | C123: 1304 | M123: 0 | P123: 0
A124: Cash & AR/AP - Quick Ratio | C124: 9991 | M124: 0
A125: Cashflow/AP - Coverage Ratio | C125: 9992 | M125: 0
B128: = cells not carried forward to cashflow page

Sheet Input
A1: Property | B1: =IF(Cashflow!C9="x",+'5yr CHFA History'!B2,'5yr SSHP History'!B2) -> 0
A2: Units | E2: 0 | H2: Comments
A3: First Year | E3: Proforma | F3: Adjustment | G3: First Year
A4: Gross Potential Rent Revenue (Tenant) | E4: =IF(Cashflow!C9="X",'5yr CHFA History'!R6,'5yr SSHP History'!R7+'5yr SSHP History'!R6) -> 0 | G4: =+E4+F4 -> 0
A5: Gross Potential Rent Revenue (HAP) | E5: =IF(Cashflow!C9="x",'5yr CHFA History'!R7,0) -> 0 | G5: 0
A6: Vacancy Rate | B6: 0.02 | D6: Input | E6: =IF(Cashflow!C9="x",'5yr CHFA History'!R24,'5yr SSHP History'!R11+'5yr SSHP History'!R12) -> 0 | F6: =IF(-E6>(E4+E5)*B6,0,((E4+E5)*B6)+E6)*-1 -> 0 | G6: =+E6+F6 -> 0
A7: Elderly & Congregate Services Income | E7: =IF(Cashflow!C9="x",+'5yr CHFA History'!R26,0) -> 0 | G7: 0
A8: Financial Revenue | E8: =IF(Cashflow!C9="x",+'5yr CHFA History'!R31,'5yr SSHP History'!R16) -> 0 | G8: 0
A9: Other Revenue | E9: =IF(Cashflow!C9="x",'5yr CHFA History'!R8+'5yr CHFA History'!R9+'5yr CHFA History'!R10+'5yr CHFA History'!R11+'5yr CHFA History'!R12+'5yr CHFA History'!R13+'5yr CHFA History'!R14+'5yr CHFA History'!R15+'5yr CHFA History'!R16+'5yr CHFA History'!R38,'5yr SSHP History'!R9+'5yr SSHP History'!R8+'5yr SSHP History'!R14+'5yr SSHP History'!R15+'5yr SSHP History'!R17+'5yr SSHP History'!R59) -> 0 | G9: 0
A10: Effective Income | E10: =SUM(E4:E9) -> 0 | F10: =SUM(F4:F9) -> 0 | G10: =SUM(G4:G9) -> 0
A12: Administrative | E12: =IF(Cashflow!C9="x",'5yr CHFA History'!R57-'5yr CHFA History'!R48,'5yr SSHP History'!R32-'5yr SSHP History'!R25-'5yr SSHP History'!R30-'5yr SSHP History'!R31+'5yr SSHP History'!R55) -> 0 | G12: =+E12+F12 -> 0
A13: Management Fees/ %/yr | B13: 0.05 | C13: =+E10*B13 -> 0 | E13: =IF(Cashflow!C9="x",+'5yr CHFA History'!R48,'5yr SSHP History'!R25) -> 0 | G13: =+E13+F13 -> 0
A14: Utilities | E14: =IF(Cashflow!C9="X",'5yr CHFA History'!R63,'5yr SSHP History'!R39-'5yr SSHP History'!R37) -> 0 | G14: 0
A15: Operating & Maintenance | E15: =IF(Cashflow!C9="x",'5yr CHFA History'!R87,'5yr SSHP History'!R45+'5yr SSHP History'!R46+'5yr SSHP History'!R60+'5yr SSHP History'!R37) -> 0 | G15: 0
A16: Property Taxes | E16: =IF(Cashflow!C9="x",'5yr CHFA History'!R88,'5yr SSHP History'!R48) -> 0 | G16: 0
A17: Property Insurance | E17: =IF(Cashflow!C9="x",'5yr CHFA History'!R91,'5yr SSHP History'!R47) -> 0 | G17: 0
A18: Other Taxes & Insurance | E18: =IF(Cashflow!C9="x",'5yr CHFA History'!R90+'5yr CHFA History'!R89+'5yr CHFA History'!R92+'5yr CHFA History'!R93+'5yr CHFA History'!R94+'5yr CHFA History'!R95,'5yr SSHP History'!R30+'5yr SSHP History'!R31) -> 0 | G18: 0
A19: Misc Financial Expenses | E19: =IF(Cashflow!C9="x",+'5yr CHFA History'!R101+'5yr CHFA History'!R102,0) -> 0 | G19: 0
A20: Repl Rsv/per unit/yr | B20: 400 | C20: =+B20*E2 -> 0 | E20: =IF(Cashflow!C9="x",'5yr CHFA History'!R121,'5yr SSHP History'!R54) -> 0 | G20: 0
A21: State Service Fees* | E21: =IF(Cashflow!C9="x",0,'5yr SSHP History'!R49) -> 0 | G21: 0
A22: Resident Services Coordinator | E22: =IF(Cashflow!C9="x",'5yr CHFA History'!R104,0) -> 0 | G22: 0
A23: Total Operating Expenses | E23: =SUM(E12:E22) -> 0 | F23: =SUM(F12:F22) -> 0 | G23: =SUM(G12:G22) -> 0
A24: NOI | E24: =+E10-E23 -> 0 | F24: =+F10-F23 -> 0 | G24: =+G10-G23 -> 0
A25: Secondary Debt Services and Expenses | E25: =IF(Cashflow!C9="x",+'5yr CHFA History'!R97+'5yr CHFA History'!R99+'5yr CHFA History'!R100,'5yr SSHP History'!R50+'5yr SSHP History'!R56+'5yr SSHP History'!R57) -> 0 | G25: =+E25+F25 -> 0
A26: Net profit Loss (w/o 1st mortgage) | E26: =+E24-E25 -> 0 | F26: =+F24-F25 -> 0 | G26: =+G24-G25 -> 0
A28: Mortgage Balance | B28: 0.01 | D28: Input | E28: =+B28 -> 0.01
A29: Proposed New Mortgage | B29: 0 | D29: Input | E29: =+B29 -> 0
A30: Total Debt | E30: =SUM(E28:E29) -> 0.01
A31: Proposed New Mortgage term (in years) | E31: 0.01
A32: Source of Funds | C32: ITA rate | D32: Spread
A33: Interest Rate | C33: 0 | E33: =C33+D33 -> 0
A35: Replacement Reserve Balance | C35: 0
A37: Debt Analysis
A38: Max Debt Capacity Calculation @
A39: Max DS @ | B39: 1.15 | E39: =(G26/B39) -> 0
A40: Mortgage Constant | E40: =-PMT(E33,E31,1) -> 100
A41: Max Debt | E41: =E39/E40 -> 0
A42: Proforma Debt Service | E42: =+Amortization!C13 -> 0
A43: Proforma DSCR | E43: =G26/E42 -> 

Sheet Cashflow
A1: 1 | B1: Assumptions: | J1: =+Input!B1 -> 0
A2: =A1+1 -> 2 | B2: Number of Units | H2: =Input!E2 -> 0
A3: 3 | B3: Tenant's Rent Inflation | H3: 0.02
A4: 4 | B4: Growth Rate in HAP | H4: 0.02
A5: 5 | B5: Expense Inflation | H5: 0.03
A6: 6 | B6: Replacement Reserves Inflation | H6: 0
A7: 7 | O7: BORROWER'S CURRENT | Q7: First Year
A8: 8 | H8: DOWNLOADED HISTORIC STATEMENTS | M8: Historical | O8: Budget | P8: Annualized*
A9: 9 | D9: Private | F9: X | G9: Public | N9: Annual | Q9: 1 | R9: =1+Q9 -> 2 | S9: 3 | T9: 4 | U9: 5 | V9: 6 | W9: 7 | X9: 8 | Y9: =1+X9 -> 9 | Z9: 10 | AA9: 11 | AB9: 12 | AC9: 13 | AD9: 14 | AE9: 15 | AF9: 16 | AG9: 17 | AH9: =1+AG9 -> 18 | AI9: 19 | AJ9: 20 | AK9: 21 | AL9: 22 | AM9: 23 | AN9: 24 | AO9: 25 | AP9: 26 | AQ9: 27 | AR9: 28 | AS9: 29 | AT9: 30
A10: 10 | H10: =IF($C9="X",'5yr CHFA History'!L4,'5yr SSHP History'!L4) -> 2014 | I10: =IF($C9="X",'5yr CHFA History'!J4,'5yr SSHP History'!J4) -> 2015 | J10: =IF($C9="X",'5yr CHFA History'!H4,'5yr SSHP History'!H4) -> 2016 | K10: =IF($C9="X",'5yr CHFA History'!F4,'5yr SSHP History'!F4) -> 2017 | L10: =IF($C9="X",'5yr CHFA History'!D4,'5yr SSHP History'!D4) -> 2018 | M10: Average | N10: Growth % | O10: =+'5yr SSHP History'!O4 -> 2019 | P10: =+'5yr SSHP History'!P4 -> 2019 | Q10: =+Input!B3 -> 0 | R10: =+Q10+1 -> 1 | S10: =+R10+1 -> 2 | T10: 3 | U10: 4 | V10: 5 | W10: 6 | X10: 7 | Y10: =+X10+1 -> 8 | Z10: 9 | AA10: 10 | AB10: 11 | AC10: 12 | AD10: 13 | AE10: 14 | AF10: 15 | AG10: 16 | AH10: =+AG10+1 -> 17 | AI10: 18 | AJ10: 19 | AK10: 20 | AL10: 21 | AM10: 22 | AN10: 23 | AO10: 24 | AP10: 25 | AQ10: 26 | AR10: 27 | AS10: 28 | AT10: 29
A11: 11 | B11: SOURCES
A12: 12 | B12: Gross Potential Rent Revenue (Tenant) | H12: =IF($C9="X",'5yr CHFA History'!L6,'5yr SSHP History'!L6+'5yr SSHP History'!L7) -> 0 | I12: =IF($C9="X",'5yr CHFA History'!J6,'5yr SSHP History'!J6+'5yr SSHP History'!J7) -> 0 | J12: =IF($C9="X",'5yr CHFA History'!H6,'5yr SSHP History'!H6+'5yr SSHP History'!H7) -> 0 | K12: =IF($C9="X",'5yr CHFA History'!F6,'5yr SSHP History'!F6+'5yr SSHP History'!F7) -> 0 | L12: =IF($C9="X",'5yr CHFA History'!D6,'5yr SSHP History'!D7+'5yr SSHP History'!D6) -> 0 | M12: =IF(SUM(H12:L12)<>0,SUM(H12:L12)/(SUMPRODUCT((H12:L12<>0)*1)),0) -> 0 | N12: =IF(M12=0,0,(L12/H12)^0.2-1) -> 0 | O12: =IF($C9="X",'5yr CHFA History'!O6,'5yr SSHP History'!O7+'5yr SSHP History'!O6) -> 0 | P12: =IF($C9="X",'5yr CHFA History'!P6,'5yr SSHP History'!P7+'5yr SSHP History'!P6) -> 0 | Q12: =+Input!G4 -> 0 | R12: =Q12*(1+$H$3) -> 0 | S12: =R12*(1+$H$3) -> 0 | T12: =S12*(1+$H$3) -> 0 | U12: 0 | V12: 0 | W12: 0 | X12: 0 | Y12: 0 | Z12: 0 | AA12: 0 | AB12: 0 | AC12: 0 | AD12: 0 | AE12: 0 | AF12: 0 | AG12: 0 | AH12: 0 | AI12: 0 | AJ12: 0 | AK12: 0 | AL12: 0 | AM12: 0 | AN12: 0 | AO12: 0 | AP12: 0 | AQ12: 0 | AR12: 0 | AS12: 0 | AT12: 0
A13: 13 | B13: Gross Potential Rent Revenue (HAP) | H13: =IF($C9="x",'5yr CHFA History'!L7,0) -> 0 | I13: =IF($C9="x",'5yr CHFA History'!J7,0) -> 0 | J13: =IF($C9="x",'5yr CHFA History'!H7,0) -> 0 | K13: =IF($C9="x",'5yr CHFA History'!F7,0) -> 0 | L13: =IF($C9="x",'5yr CHFA History'!D7,0) -> 0 | M13: =IF(SUM(H13:L13)<>0,SUM(H13:L13)/(SUMPRODUCT((H13:L13<>0)*1)),0) -> 0 | N13: =IF(M13=0,0,(L13/H13)^0.2-1) -> 0 | O13: =IF($C9="x",'5yr CHFA History'!O7,0) -> 0 | P13: =IF($C9="x",'5yr CHFA History'!P7,0) -> 0 | Q13: =+Input!G5 -> 0 | R13: =Q13*(1+$H$4) -> 0 | S13: =R13*(1+$H$4) -> 0 | T13: =S13*(1+$H$4) -> 0 | U13: 0 | V13: 0 | W13: 0 | X13: 0 | Y13: 0 | Z13: 0 | AA13: 0 | AB13: 0 | AC13: 0 | AD13: 0 | AE13: 0 | AF13: 0 | AG13: 0 | AH13: 0 | AI13: 0 | AJ13: 0 | AK13: 0 | AL13: 0 | AM13: 0 | AN13: 0 | AO13: 0 | AP13: 0 | AQ13: 0 | AR13: 0 | AS13: 0 | AT13: 0
A14: 14 | B14: Total Gross Potential | H14: =H12+H13 -> 0 | I14: 0 | J14: 0 | K14: 0 | L14: 0 | M14: 0 | N14: 0 | O14: =O12+O13 -> 0 | P14: =P12+P13 -> 0 | Q14: =SUM(Q12:Q13) -> 0 | R14: =SUM(R12:R13) -> 0 | S14: =SUM(S12:S13) -> 0 | T14: =SUM(T12:T13) -> 0 | U14: 0 | V14: 0 | W14: 0 | X14: 0 | Y14: 0 | Z14: 0 | AA14: 0 | AB14: 0 | AC14: 0 | AD14: 0 | AE14: 0 | AF14: 0 | AG14: 0 | AH14: 0 | AI14: 0 | AJ14: 0 | AK14: 0 | AL14: 0 | AM14: 0 | AN14: 0 | AO14: 0 | AP14: 0 | AQ14: 0 | AR14: 0 | AS14: 0 | AT14: 0
A15: 15 | B15: Vacancies | H15: =IF($C9="x",'5yr CHFA History'!L24,'5yr SSHP History'!L11+'5yr SSHP History'!L12) -> 0 | I15: =IF($C9="x",'5yr CHFA History'!J24,'5yr SSHP History'!J11+'5yr SSHP History'!J12) -> 0 | J15: =IF($C9="x",'5yr CHFA History'!H24,'5yr SSHP History'!H11+'5yr SSHP History'!H12) -> 0 | K15: =IF($C9="x",'5yr CHFA History'!F24,'5yr SSHP History'!F11+'5yr SSHP History'!F12) -> 0 | L15: =IF($C9="x",'5yr CHFA History'!D24,'5yr SSHP History'!D11+'5yr SSHP History'!D12) -> 0 | M15: 0 | N15: 0 | O15: =IF($C9="x",'5yr CHFA History'!O24,'5yr SSHP History'!O11+'5yr SSHP History'!O12) -> 0 | P15: =IF($C9="x",'5yr CHFA History'!P24,'5yr SSHP History'!P11+'5yr SSHP History'!P12) -> 0 | Q15: =+Input!G6 -> 0 | R15: =Q15*(1+$H$5) -> 0 | S15: =R15*(1+$H$5) -> 0 | T15: 0 | U15: 0 | V15: 0 | W15: 0 | X15: 0 | Y15: 0 | Z15: 0 | AA15: 0 | AB15: 0 | AC15: 0 | AD15: 0 | AE15: 0 | AF15: 0 | AG15: 0 | AH15: 0 | AI15: 0 | AJ15: 0 | AK15: 0 | AL15: 0 | AM15: 0 | AN15: 0 | AO15: 0 | AP15: 0 | AQ15: 0 | AR15: 0 | AS15: 0 | AT15: 0
A16: 16 | B16: Net Rental Revenue | H16: =H14+H15 -> 0 | I16: =I14+I15 -> 0 | J16: =J14+J15 -> 0 | K16: =K14+K15 -> 0 | L16: =L14+L15 -> 0 | M16: 0 | N16: =IF(M16=0,0,(L16/H16)^0.2+1) -> 0 | O16: =O14+O15 -> 0 | P16: 0 | Q16: 0 | R16: 0 | S16: 0 | T16: 0 | U16: 0 | V16: 0 | W16: 0 | X16: 0 | Y16: 0 | Z16: 0 | AA16: 0 | AB16: 0 | AC16: 0 | AD16: 0 | AE16: 0 | AF16: 0 | AG16: 0 | AH16: 0 | AI16: 0 | AJ16: 0 | AK16: 0 | AL16: 0 | AM16: 0 | AN16: 0 | AO16: 0 | AP16: 0 | AQ16: 0 | AR16: 0 | AS16: 0 | AT16: 0
A17: 17 | B17: Elderly & Congregate Service Income | H17: =IF($C9="x",+'5yr CHFA History'!L26,0) -> 0 | I17: =IF($C9="x",+'5yr CHFA History'!J26,0) -> 0 | J17: =IF($C9="x",+'5yr CHFA History'!H26,0) -> 0 | K17: =IF($C9="x",+'5yr CHFA History'!F26,0) -> 0 | L17: =IF($C9="x",+'5yr CHFA History'!D26,0) -> 0 | M17: 0 | N17: 0 | O17: =IF($C9="x",+'5yr CHFA History'!O26,0) -> 0 | P17: =IF($C9="x",+'5yr CHFA History'!P26,0) -> 0 | Q17: =+Input!G7 -> 0 | R17: =Q17*(1+$H$3) -> 0 | S17: =R17*(1+$H$3) -> 0 | T17: 0 | U17: 0 | V17: 0 | W17: 0 | X17: 0 | Y17: 0 | Z17: 0 | AA17: 0 | AB17: 0 | AC17: 0 | AD17: 0 | AE17: 0 | AF17: 0 | AG17: 0 | AH17: 0 | AI17: 0 | AJ17: 0 | AK17: 0 | AL17: 0 | AM17: 0 | AN17: 0 | AO17: 0 | AP17: 0 | AQ17: 0 | AR17: 0 | AS17: 0 | AT17: 0
A18: 18 | B18: Financial Revenue | H18: =IF($C9="x",+'5yr CHFA History'!L31,'5yr SSHP History'!L16) -> 0 | I18: =IF($C9="x",+'5yr CHFA History'!J31,'5yr SSHP History'!J16) -> 0 | J18: =IF($C9="x",+'5yr CHFA History'!H31,'5yr SSHP History'!H16) -> 0 | K18: =IF($C9="x",+'5yr CHFA History'!F31,'5yr SSHP History'!F16) -> 0 | L18: =IF($C9="x",+'5yr CHFA History'!D31,'5yr SSHP History'!D16) -> 0 | M18: 0 | N18: 0 | O18: =IF($C9="x",+'5yr CHFA History'!O31,'5yr SSHP History'!O16) -> 0 | P18: =IF($C9="x",+'5yr CHFA History'!P31,'5yr SSHP History'!P16) -> 0 | Q18: =+Input!G8 -> 0 | R18: =Q18*(1+$H$3) -> 0 | S18: =R18*(1+$H$3) -> 0 | T18: 0 | U18: 0 | V18: 0 | W18: 0 | X18: 0 | Y18: 0 | Z18: 0 | AA18: 0 | AB18: 0 | AC18: 0 | AD18: 0 | AE18: 0 | AF18: 0 | AG18: 0 | AH18: 0 | AI18: 0 | AJ18: 0 | AK18: 0 | AL18: 0 | AM18: 0 | AN18: 0 | AO18: 0 | AP18: 0 | AQ18: 0 | AR18: 0 | AS18: 0 | AT18: 0
A19: 19 | B19: Other Revenue | H19: =IF($C9="x",'5yr CHFA History'!L8+'5yr CHFA History'!L9+'5yr CHFA History'!L10+'5yr CHFA History'!L11+'5yr CHFA History'!L12+'5yr CHFA History'!L13+'5yr CHFA History'!L14+'5yr CHFA History'!L15+'5yr CHFA History'!L16+'5yr CHFA History'!L38,'5yr SSHP History'!L9+'5yr SSHP History'!L8+'5yr SSHP History'!L14+'5yr SSHP History'!L15+'5yr SSHP History'!L17+'5yr SSHP History'!L59) -> 0 | I19: =IF($C9="x",'5yr CHFA History'!J8+'5yr CHFA History'!J9+'5yr CHFA History'!J10+'5yr CHFA History'!J11+'5yr CHFA History'!J12+'5yr CHFA History'!J13+'5yr CHFA History'!J14+'5yr CHFA History'!J15+'5yr CHFA History'!J16+'5yr CHFA History'!J38,'5yr SSHP History'!J9+'5yr SSHP History'!J8+'5yr SSHP History'!J14+'5yr SSHP History'!J15+'5yr SSHP History'!J17+'5yr SSHP History'!J59) -> 0 | J19: =IF($C9="x",'5yr CHFA History'!H8+'5yr CHFA History'!H9+'5yr CHFA History'!H10+'5yr CHFA History'!H11+'5yr CHFA History'!H12+'5yr CHFA History'!H13+'5yr CHFA History'!H14+'5yr CHFA History'!H15+'5yr CHFA History'!H16+'5yr CHFA History'!H38,'5yr SSHP History'!H9+'5yr SSHP History'!H8+'5yr SSHP History'!H14+'5yr SSHP History'!H15+'5yr SSHP History'!H17+'5yr SSHP History'!H59) -> 0 | K19: =IF($C9="x",'5yr CHFA History'!F8+'5yr CHFA History'!F9+'5yr CHFA History'!F10+'5yr CHFA History'!F11+'5yr CHFA History'!F12+'5yr CHFA History'!F13+'5yr CHFA History'!F14+'5yr CHFA History'!F15+'5yr CHFA History'!F16+'5yr CHFA History'!F38,'5yr SSHP History'!F9+'5yr SSHP History'!F8+'5yr SSHP History'!F14+'5yr SSHP History'!F15+'5yr SSHP History'!F17+'5yr SSHP History'!F59) -> 0 | L19: =IF($C9="x",'5yr CHFA History'!D8+'5yr CHFA History'!D9+'5yr CHFA History'!D10+'5yr CHFA History'!D11+'5yr CHFA History'!D12+'5yr CHFA History'!D13+'5yr CHFA History'!D14+'5yr CHFA History'!D15+'5yr CHFA History'!D16+'5yr CHFA History'!D38,'5yr SSHP History'!D9+'5yr SSHP History'!D8+'5yr SSHP History'!D14+'5yr SSHP History'!D15+'5yr SSHP History'!D17+'5yr SSHP History'!D59) -> 0 | M19: 0 | N19: 0 | O19: =IF($C9="x",'5yr CHFA History'!O8+'5yr CHFA History'!O9+'5yr CHFA History'!O10+'5yr CHFA History'!O11+'5yr CHFA History'!O12+'5yr CHFA History'!O13+'5yr CHFA History'!O14+'5yr CHFA History'!O15+'5yr CHFA History'!O16+'5yr CHFA History'!O38,'5yr SSHP History'!O9+'5yr SSHP History'!O8+'5yr SSHP History'!O14+'5yr SSHP History'!O15+'5yr SSHP History'!O17+'5yr SSHP History'!O59) -> 0 | P19: =IF($C9="x",'5yr CHFA History'!P8+'5yr CHFA History'!P9+'5yr CHFA History'!P10+'5yr CHFA History'!P11+'5yr CHFA History'!P12+'5yr CHFA History'!P13+'5yr CHFA History'!P14+'5yr CHFA History'!P15+'5yr CHFA History'!P16+'5yr CHFA History'!P38,'5yr SSHP History'!P9+'5yr SSHP History'!P8+'5yr SSHP History'!P14+'5yr SSHP History'!P15+'5yr SSHP History'!P17+'5yr SSHP History'!P59) -> 0 | Q19: =Input!G9 -> 0 | R19: =Q19*(1+$H$3) -> 0 | S19: =R19*(1+$H$3) -> 0 | T19: =S19*(1+$H$3) -> 0 | U19: 0 | V19: 0 | W19: 0 | X19: 0 | Y19: 0 | Z19: 0 | AA19: 0 | AB19: 0 | AC19: 0 | AD19: 0 | AE19: 0 | AF19: 0 | AG19: 0 | AH19: 0 | AI19: 0 | AJ19: 0 | AK19: 0 | AL19: 0 | AM19: 0 | AN19: 0 | AO19: 0 | AP19: 0 | AQ19: 0 | AR19: 0 | AS19: 0 | AT19: 0
A20: 20 | B20: Total Revenue | H20: =H16+H17+H18+H19 -> 0 | I20: 0 | J20: 0 | K20: 0 | L20: 0 | M20: 0 | N20: 0 | O20: =O16+O17+O18+O19 -> 0 | P20: =P16+P17+P18+P19 -> 0 | Q20: =SUM(Q16:Q19) -> 0 | R20: =SUM(R16:R19) -> 0 | S20: =SUM(S16:S19) -> 0 | T20: =SUM(T16:T19) -> 0 | U20: 0 | V20: 0 | W20: 0 | X20: 0 | Y20: 0 | Z20: 0 | AA20: 0 | AB20: 0 | AC20: 0 | AD20: 0 | AE20: 0 | AF20: 0 | AG20: 0 | AH20: 0 | AI20: 0 | AJ20: 0 | AK20: 0 | AL20: 0 | AM20: 0 | AN20: 0 | AO20: 0 | AP20: 0 | AQ20: 0 | AR20: 0 | AS20: 0 | AT20: 0
A21: 21 | B21: EXPENSES
A22: 22 | B22: Administrative | H22: =IF($C9="x",'5yr CHFA History'!L57-'5yr CHFA History'!L48,'5yr SSHP History'!L32-'5yr SSHP History'!L25-'5yr SSHP History'!L31-'5yr SSHP History'!L30+'5yr SSHP History'!L55) -> 0 | I22: =IF($C9="x",'5yr CHFA History'!J57-'5yr CHFA History'!J48,'5yr SSHP History'!J32-'5yr SSHP History'!J25-'5yr SSHP History'!J30-'5yr SSHP History'!J31+'5yr SSHP History'!J55) -> 0 | J22: =IF($C9="x",'5yr CHFA History'!H57-'5yr CHFA History'!H48,'5yr SSHP History'!H32-'5yr SSHP History'!H25-'5yr SSHP History'!H30-'5yr SSHP History'!H31+'5yr SSHP History'!H55) -> 0 | K22: =IF($C9="x",'5yr CHFA History'!F57-'5yr CHFA History'!F48,'5yr SSHP History'!F32-'5yr SSHP History'!F25-'5yr SSHP History'!F30-'5yr SSHP History'!F31+'5yr SSHP History'!F55) -> 0 | L22: =IF($C9="x",'5yr CHFA History'!D57-'5yr CHFA History'!D48,'5yr SSHP History'!D32-'5yr SSHP History'!D25-'5yr SSHP History'!D30-'5yr SSHP History'!D31+'5yr SSHP History'!D55) -> 0 | M22: 0 | N22: 0 | O22: =IF($C9="x",'5yr CHFA History'!O57-'5yr CHFA History'!O48,'5yr SSHP History'!O32-'5yr SSHP History'!O25-'5yr SSHP History'!O30-'5yr SSHP History'!O31+'5yr SSHP History'!O55) -> 0 | P22: =IF($C9="x",'5yr CHFA History'!P57-'5yr CHFA History'!P48,'5yr SSHP History'!P32-'5yr SSHP History'!P25-'5yr SSHP History'!P30+'5yr SSHP History'!P29+'5yr SSHP History'!P55) -> 0 | Q22: =+Input!G12 -> 0 | R22: =Q22*(1+$H$5) -> 0 | S22: =R22*(1+$H$5) -> 0 | T22: =S22*(1+$H$5) -> 0 | U22: =T22*(1+$H$5) -> 0 | V22: =U22*(1+$H$5) -> 0 | W22: =V22*(1+$H$5) -> 0 | X22: 0 | Y22: 0 | Z22: 0 | AA22: 0 | AB22: 0 | AC22: 0 | AD22: 0 | AE22: 0 | AF22: 0 | AG22: 0 | AH22: 0 | AI22: 0 | AJ22: 0 | AK22: 0 | AL22: 0 | AM22: 0 | AN22: 0 | AO22: 0 | AP22: 0 | AQ22: 0 | AR22: 0 | AS22: 0 | AT22: 0
A23: 23 | B23: Management Fees | H23: =IF($C9="X",'5yr CHFA History'!L48,'5yr SSHP History'!L25) -> 0 | I23: =IF($C9="X",'5yr CHFA History'!J48,'5yr SSHP History'!J25) -> 0 | J23: =IF($C9="X",'5yr CHFA History'!H48,'5yr SSHP History'!H25) -> 0 | K23: =IF($C9="X",'5yr CHFA History'!F48,'5yr SSHP History'!F25) -> 0 | L23: =IF($C9="X",'5yr CHFA History'!D48,'5yr SSHP History'!D25) -> 0 | M23: 0 | N23: 0 | O23: =IF($C9="x",+'5yr CHFA History'!O48,'5yr SSHP History'!O25) -> 0 | P23: =IF($C9="x",+'5yr CHFA History'!P48,'5yr SSHP History'!P25) -> 0 | Q23: =+Input!G13 -> 0 | R23: =Q23*(1+$H$5) -> 0 | S23: =R23*(1+$H$5) -> 0 | T23: 0 | U23: 0 | V23: 0 | W23: =V23*(1+$H$5) -> 0 | X23: 0 | Y23: 0 | Z23: 0 | AA23: 0 | AB23: 0 | AC23: 0 | AD23: 0 | AE23: 0 | AF23: 0 | AG23: 0 | AH23: 0 | AI23: 0 | AJ23: 0 | AK23: 0 | AL23: 0 | AM23: 0 | AN23: 0 | AO23: 0 | AP23: 0 | AQ23: 0 | AR23: 0 | AS23: 0 | AT23: 0
A24: 24 | B24: Utilities | H24: =IF($C9="X",'5yr CHFA History'!L63,'5yr SSHP History'!L39-'5yr SSHP History'!L37) -> 0 | I24: =IF($C9="X",'5yr CHFA History'!J63,'5yr SSHP History'!J39-'5yr SSHP History'!J37) -> 0 | J24: =IF($C9="X",'5yr CHFA History'!H63,'5yr SSHP History'!H39-'5yr SSHP History'!H37) -> 0 | K24: =IF($C9="X",'5yr CHFA History'!F63,'5yr SSHP History'!F39-'5yr SSHP History'!F37) -> 0 | L24: =IF($C9="X",'5yr CHFA History'!D63,'5yr SSHP History'!D39-'5yr SSHP History'!D37) -> 0 | M24: 0 | N24: 0 | O24: =IF($C9="X",'5yr CHFA History'!O63,'5yr SSHP History'!O39-'5yr SSHP History'!O37) -> 0 | P24: =IF($C9="X",'5yr CHFA History'!P63,'5yr SSHP History'!P39) -> 0 | Q24: =+Input!G14 -> 0 | R24: 0 | S24: 0 | T24: 0 | U24: 0 | V24: 0 | W24: =V24*(1+$H$5) -> 0 | X24: 0 | Y24: 0 | Z24: 0 | AA24: 0 | AB24: 0 | AC24: 0 | AD24: 0 | AE24: 0 | AF24: 0 | AG24: 0 | AH24: 0 | AI24: 0 | AJ24: 0 | AK24: 0 | AL24: 0 | AM24: 0 | AN24: 0 | AO24: 0 | AP24: 0 | AQ24: 0 | AR24: 0 | AS24: 0 | AT24: 0
A25: 25 | B25: Operating & Maintenance | H25: =IF($C9="x",'5yr CHFA History'!L87,'5yr SSHP History'!L45+'5yr SSHP History'!L46+'5yr SSHP History'!L60+'5yr SSHP History'!L37) -> 0 | I25: =IF($C9="x",'5yr CHFA History'!J87,'5yr SSHP History'!J45+'5yr SSHP History'!J46+'5yr SSHP History'!J60+'5yr SSHP History'!J37) -> 0 | J25: =IF($C9="x",'5yr CHFA History'!H87,'5yr SSHP History'!H45+'5yr SSHP History'!H46+'5yr SSHP History'!H60+'5yr SSHP History'!H37) -> 0 | K25: =IF($C9="x",'5yr CHFA History'!F87,'5yr SSHP History'!F45+'5yr SSHP History'!F46+'5yr SSHP History'!F60+'5yr SSHP History'!F37) -> 0 | L25: =IF($C9="x",'5yr CHFA History'!D87,'5yr SSHP History'!D45+'5yr SSHP History'!D46+'5yr SSHP History'!D60+'5yr SSHP History'!D37) -> 0 | M25: 0 | N25: 0 | O25: =IF($C9="x",'5yr CHFA History'!O87,'5yr SSHP History'!O45+'5yr SSHP History'!O46+'5yr SSHP History'!O60+'5yr SSHP History'!O37) -> 0 | P25: =IF($C9="x",'5yr CHFA History'!P87,'5yr SSHP History'!P45+'5yr SSHP History'!P46+'5yr SSHP History'!P60) -> 0 | Q25: =+Input!G15 -> 0 | R25: 0 | S25: 0 | T25: 0 | U25: 0 | V25: 0 | W25: =V25*(1+$H$5) -> 0 | X25: 0 | Y25: 0 | Z25: 0 | AA25: 0 | AB25: 0 | AC25: 0 | AD25: 0 | AE25: 0 | AF25: 0 | AG25: 0 | AH25: 0 | AI25: 0 | AJ25: 0 | AK25: 0 | AL25: 0 | AM25: 0 | AN25: 0 | AO25: 0 | AP25: 0 | AQ25: 0 | AR25: 0 | AS25: 0 | AT25: 0
A26: 26 | B26: Property Taxes | H26: =IF($C9="x",'5yr CHFA History'!L88,'5yr SSHP History'!L48) -> 0 | I26: =IF($C9="x",'5yr CHFA History'!J88,'5yr SSHP History'!J48) -> 0 | J26: =IF($C9="x",'5yr CHFA History'!H88,'5yr SSHP History'!H48) -> 0 | K26: =IF($C9="x",'5yr CHFA History'!F88,'5yr SSHP History'!F48) -> 0 | L26: =IF($C9="x",'5yr CHFA History'!D88,'5yr SSHP History'!D48) -> 0 | M26: 0 | N26: 0 | O26: =IF($C9="x",'5yr CHFA History'!O88,'5yr SSHP History'!O48) -> 0 | P26: =IF($C9="x",'5yr CHFA History'!P88,'5yr SSHP History'!P48) -> 0 | Q26: =+Input!G16 -> 0 | R26: 0 | S26: 0 | T26: 0 | U26: 0 | V26: 0 | W26: =V26*(1+$H$5) -> 0 | X26: 0 | Y26: 0 | Z26: 0 | AA26: 0 | AB26: 0 | AC26: 0 | AD26: 0 | AE26: 0 | AF26: 0 | AG26: 0 | AH26: 0 | AI26: 0 | AJ26: 0 | AK26: 0 | AL26: 0 | AM26: 0 | AN26: 0 | AO26: 0 | AP26: 0 | AQ26: 0 | AR26: 0 | AS26: 0 | AT26: 0
A27: 27 | B27: Property Insurance | H27: =IF($C9="x",'5yr CHFA History'!L91,'5yr SSHP History'!L47) -> 0 | I27: =IF($C9="x",'5yr CHFA History'!J91,'5yr SSHP History'!J47) -> 0 | J27: =IF($C9="x",'5yr CHFA History'!H91,'5yr SSHP History'!H47) -> 0 | K27: =IF($C9="x",'5yr CHFA History'!F91,'5yr SSHP History'!F47) -> 0 | L27: =IF($C9="x",'5yr CHFA History'!D91,'5yr SSHP History'!D47) -> 0 | M27: 0 | N27: 0 | O27: =IF($C9="x",'5yr CHFA History'!O91,'5yr SSHP History'!O47) -> 0 | P27: =IF($C9="x",'5yr CHFA History'!P91,'5yr SSHP History'!P47) -> 0 | Q27: =+Input!G17 -> 0 | R27: 0 | S27: 0 | T27: 0 | U27: 0 | V27: 0 | W27: =V27*(1+$H$5) -> 0 | X27: 0 | Y27: 0 | Z27: 0 | AA27: 0 | AB27: 0 | AC27: 0 | AD27: 0 | AE27: 0 | AF27: 0 | AG27: 0 | AH27: 0 | AI27: 0 | AJ27: 0 | AK27: 0 | AL27: 0 | AM27: 0 | AN27: 0 | AO27: 0 | AP27: 0 | AQ27: 0 | AR27: 0 | AS27: 0 | AT27: 0
A28: 28 | B28: Other Taxes, Insurance | H28: =IF($C9="x",'5yr CHFA History'!L90+'5yr CHFA History'!L89+'5yr CHFA History'!L92+'5yr CHFA History'!L93+'5yr CHFA History'!L94+'5yr CHFA History'!L95,'5yr SSHP History'!L30+'5yr SSHP History'!L31) -> 0 | I28: =IF($C9="x",'5yr CHFA History'!J90+'5yr CHFA History'!J89+'5yr CHFA History'!J92+'5yr CHFA History'!J93+'5yr CHFA History'!J94+'5yr CHFA History'!J95,'5yr SSHP History'!J30+'5yr SSHP History'!J31) -> 0 | J28: =IF($C9="x",'5yr CHFA History'!H90+'5yr CHFA History'!H89+'5yr CHFA History'!H92+'5yr CHFA History'!H93+'5yr CHFA History'!H94+'5yr CHFA History'!H95,'5yr SSHP History'!H30+'5yr SSHP History'!H31) -> 0 | K28: =IF($C9="x",'5yr CHFA History'!F90+'5yr CHFA History'!F89+'5yr CHFA History'!F92+'5yr CHFA History'!F93+'5yr CHFA History'!F94+'5yr CHFA History'!F95,'5yr SSHP History'!F30+'5yr SSHP History'!F31) -> 0 | L28: =IF($C9="x",'5yr CHFA History'!D90+'5yr CHFA History'!D89+'5yr CHFA History'!D92+'5yr CHFA History'!D93+'5yr CHFA History'!D94+'5yr CHFA History'!D95,'5yr SSHP History'!D30+'5yr SSHP History'!D31) -> 0 | M28: 0 | N28: 0 | O28: =IF($C9="x",'5yr CHFA History'!O90+'5yr CHFA History'!O89+'5yr CHFA History'!O92+'5yr CHFA History'!O93+'5yr CHFA History'!O94+'5yr CHFA History'!O95,'5yr SSHP History'!O30+'5yr SSHP History'!O31) -> 0 | P28: =IF($C9="x",'5yr CHFA History'!P90+'5yr CHFA History'!P89+'5yr CHFA History'!P92+'5yr CHFA History'!P93+'5yr CHFA History'!P94+'5yr CHFA History'!P95,'5yr SSHP History'!P30+'5yr SSHP History'!P31) -> 0 | Q28: =+Input!G18 -> 0 | R28: 0 | S28: 0 | T28: 0 | U28: 0 | V28: 0 | W28: =V28*(1+$H$5) -> 0 | X28: 0 | Y28: 0 | Z28: 0 | AA28: 0 | AB28: 0 | AC28: 0 | AD28: 0 | AE28: 0 | AF28: 0 | AG28: 0 | AH28: 0 | AI28: 0 | AJ28: 0 | AK28: 0 | AL28: 0 | AM28: 0 | AN28: 0 | AO28: 0 | AP28: 0 | AQ28: 0 | AR28: 0 | AS28: 0 | AT28: 0
A29: 29 | B29: Misc. Financial Expense | H29: =IF($C9="x",+'5yr CHFA History'!L101+'5yr CHFA History'!L102,0) -> 0 | I29: =IF($C9="x",+'5yr CHFA History'!J101+'5yr CHFA History'!J102,0) -> 0 | J29: =IF($C9="x",+'5yr CHFA History'!H101+'5yr CHFA History'!H102,0) -> 0 | K29: =IF(C9="x",+'5yr CHFA History'!F101+'5yr CHFA History'!F102,0) -> 0 | L29: =IF($C9="x",+'5yr CHFA History'!D101+'5yr CHFA History'!D102,0) -> 0 | M29: 0 | N29: 0 | O29: =IF($C9="x",+'5yr CHFA History'!O101+'5yr CHFA History'!O102,0) -> 0 | P29: =IF($C9="x",+'5yr CHFA History'!P101+'5yr CHFA History'!P102,0) -> 0 | Q29: =+Input!G19 -> 0 | R29: 0 | S29: =R29*(1+$H$5) -> 0 | T29: 0 | U29: 0 | V29: 0 | W29: 0 | X29: 0 | Y29: 0 | Z29: 0 | AA29: 0 | AB29: 0 | AC29: 0 | AD29: 0 | AE29: 0 | AF29: 0 | AG29: 0 | AH29: 0 | AI29: 0 | AJ29: 0 | AK29: 0 | AL29: 0 | AM29: 0 | AN29: 0 | AO29: 0 | AP29: 0 | AQ29: 0 | AR29: 0 | AS29: 0 | AT29: 0
A30: 30 | B30: Replacement Reserves | H30: =IF($C9="x",'5yr CHFA History'!L121,'5yr SSHP History'!L54) -> 0 | I30: =IF($C9="x",'5yr CHFA History'!J121,'5yr SSHP History'!J54) -> 0 | J30: =IF($C9="x",'5yr CHFA History'!H121,'5yr SSHP History'!H54) -> 0 | K30: =IF($C9="x",'5yr CHFA History'!F121,'5yr SSHP History'!F54) -> 0 | L30: =IF($C9="x",'5yr CHFA History'!D121,'5yr SSHP History'!D54) -> 0 | M30: 0 | N30: 0 | O30: =IF($C9="x",'5yr CHFA History'!O121,'5yr SSHP History'!O54) -> 0 | P30: =IF($C9="x",'5yr CHFA History'!P121,'5yr SSHP History'!P54) -> 0 | Q30: =+Input!G20 -> 0 | R30: =Q30*(1+$H$6) -> 0 | S30: =R30*(1+$H$6) -> 0 | T30: 0 | U30: 0 | V30: 0 | W30: 0 | X30: 0 | Y30: 0 | Z30: 0 | AA30: 0 | AB30: 0 | AC30: 0 | AD30: 0 | AE30: 0 | AF30: 0 | AG30: 0 | AH30: 0 | AI30: 0 | AJ30: 0 | AK30: 0 | AL30: 0 | AM30: 0 | AN30: 0 | AO30: 0 | AP30: 0 | AQ30: 0 | AR30: 0 | AS30: 0 | AT30: 0
A31: 31 | B31: State Service Fees | H31: =IF($C9="x",0,'5yr SSHP History'!L49) -> 0 | I31: =IF($C9="x",0,'5yr SSHP History'!J49) -> 0 | J31: =IF($C9="x",0,'5yr SSHP History'!H49) -> 0 | K31: =IF($C9="x",0,'5yr SSHP History'!F49) -> 0 | L31: =IF($C9="x",0,'5yr SSHP History'!D49) -> 0 | M31: 0 | N31: 0 | O31: =IF($C9="x",0,'5yr SSHP History'!O49) -> 0 | P31: =IF($C9="x",0,'5yr SSHP History'!P49) -> 0 | Q31: =+Input!G21 -> 0 | R31: 0 | S31: 0 | T31: 0 | U31: 0 | V31: 0 | W31: =V31*(1+$H$5) -> 0 | X31: 0 | Y31: 0 | Z31: 0 | AA31: 0 | AB31: 0 | AC31: 0 | AD31: 0 | AE31: 0 | AF31: 0 | AG31: 0 | AH31: 0 | AI31: 0 | AJ31: 0 | AK31: 0 | AL31: 0 | AM31: 0 | AN31: 0 | AO31: 0 | AP31: 0 | AQ31: 0 | AR31: 0 | AS31: 0 | AT31: 0
A32: 32 | B32: RSC / Elderly & Congregate Svc Expense | H32: =IF($C9="x",'5yr CHFA History'!L104,0) -> 0 | I32: =IF($C9="x",'5yr CHFA History'!J104,0) -> 0 | J32: =IF($C9="x",'5yr CHFA History'!H104,0) -> 0 | K32: =IF($C9="x",'5yr CHFA History'!F104,0) -> 0 | L32: =IF($C9="x",'5yr CHFA History'!D104,0) -> 0 | M32: 0 | N32: 0 | O32: =IF($C9="x",'5yr CHFA History'!O104,0) -> 0 | P32: =IF($C9="x",'5yr CHFA History'!P104,0) -> 0 | Q32: =+Input!G22 -> 0 | R32: 0 | S32: 0 | T32: 0 | U32: 0 | V32: 0 | W32: =V32*(1+$H$5) -> 0 | X32: 0 | Y32: 0 | Z32: 0 | AA32: 0 | AB32: 0 | AC32: 0 | AD32: 0 | AE32: 0 | AF32: 0 | AG32: 0 | AH32: 0 | AI32: 0 | AJ32: 0 | AK32: 0 | AL32: 0 | AM32: 0 | AN32: 0 | AO32: 0 | AP32: 0 | AQ32: 0 | AR32: 0 | AS32: 0 | AT32: 0
A33: 33 | B33: Total Operating expenses | H33: =SUM(H22:H32) -> 0 | I33: 0 | J33: 0 | K33: 0 | L33: 0 | M33: 0 | N33: 0 | O33: =SUM(O22:O32) -> 0 | P33: =SUM(P22:P32) -> 0 | Q33: =SUM(Q22:Q32) -> 0 | R33: =SUM(R22:R32) -> 0 | S33: 0 | T33: 0 | U33: 0 | V33: 0 | W33: 0 | X33: 0 | Y33: 0 | Z33: 0 | AA33: 0 | AB33: 0 | AC33: 0 | AD33: 0 | AE33: 0 | AF33: 0 | AG33: 0 | AH33: 0 | AI33: 0 | AJ33: 0 | AK33: 0 | AL33: 0 | AM33: 0 | AN33: 0 | AO33: 0 | AP33: 0 | AQ33: 0 | AR33: 0 | AS33: 0 | AT33: 0
A34: 34 | B34: Net operating Income | H34: =H20-H33 -> 0 | I34: 0 | J34: 0 | K34: 0 | L34: 0 | M34: 0 | N34: 0 | O34: =O20-O33 -> 0 | P34: =P20-P33 -> 0 | Q34: =+Q20-Q33 -> 0 | R34: =R20-R33 -> 0 | S34: 0 | T34: 0 | U34: 0 | V34: 0 | W34: 0 | X34: 0 | Y34: 0 | Z34: 0 | AA34: 0 | AB34: 0 | AC34: 0 | AD34: 0 | AE34: 0 | AF34: 0 | AG34: 0 | AH34: 0 | AI34: 0 | AJ34: 0 | AK34: 0 | AL34: 0 | AM34: 0 | AN34: 0 | AO34: 0 | AP34: 0 | AQ34: 0 | AR34: 0 | AS34: 0 | AT34: 0
A35: 35 | B35: Additional Debt & Expenses | H35: =IF($C9="X",+'5yr CHFA History'!L97+'5yr CHFA History'!L99+'5yr CHFA History'!L100,'5yr SSHP History'!L57) -> 0 | I35: =IF($C9="x",+'5yr CHFA History'!J97+'5yr CHFA History'!J99+'5yr CHFA History'!J100,'5yr SSHP History'!J57) -> 0 | J35: =IF($C9="x",+'5yr CHFA History'!H97+'5yr CHFA History'!H99+'5yr CHFA History'!H100,'5yr SSHP History'!H57) -> 0 | K35: =IF($C9="x",+'5yr CHFA History'!F97+'5yr CHFA History'!F99+'5yr CHFA History'!F100,'5yr SSHP History'!F57) -> 0 | L35: =IF($C9="x",+'5yr CHFA History'!D97+'5yr CHFA History'!D99+'5yr CHFA History'!D100,'5yr SSHP History'!D57) -> 0 | M35: 0 | N35: 0 | O35: =IF($C9="x",+'5yr CHFA History'!O97+'5yr CHFA History'!O99+'5yr CHFA History'!O100,'5yr SSHP History'!O57) -> 0 | P35: =IF($C9="X",+'5yr CHFA History'!P97+'5yr CHFA History'!P99+'5yr CHFA History'!P100,'5yr SSHP History'!P57) -> 0 | Q35: =+Input!G25 -> 0 | R35: =$Q$35 -> 0 | S35: 0 | T35: 0 | U35: 0 | V35: 0 | W35: 0 | X35: 0 | Y35: 0 | Z35: 0 | AA35: 0 | AB35: 0
A36: 36 | B36: Debt Service | H36: =IF($C9="x",'5yr CHFA History'!L98+'5yr CHFA History'!L120,'5yr SSHP History'!L50+'5yr SSHP History'!L56) -> 0 | I36: =IF($C9="x",'5yr CHFA History'!J98+'5yr CHFA History'!J120,'5yr SSHP History'!J50+'5yr SSHP History'!J56) -> 0 | J36: =IF($C9="x",'5yr CHFA History'!H98+'5yr CHFA History'!H120,'5yr SSHP History'!H50+'5yr SSHP History'!H56) -> 0 | K36: =IF($C9="x",'5yr CHFA History'!F98+'5yr CHFA History'!F120,'5yr SSHP History'!F50+'5yr SSHP History'!F56) -> 0 | L36: =IF($C9="x",'5yr CHFA History'!D98+'5yr CHFA History'!D120,'5yr SSHP History'!D50+'5yr SSHP History'!D56) -> 0 | M36: 0 | N36: 0 | O36: =IF($C9="x",'5yr CHFA History'!O98+'5yr CHFA History'!O120,'5yr SSHP History'!O50+'5yr SSHP History'!O56) -> 0 | P36: =IF($C9="x",'5yr CHFA History'!P98+'5yr CHFA History'!P120,'5yr SSHP History'!P50+'5yr SSHP History'!P56) -> 0 | Q36: =Input!E42 -> 0 | R36: =Q36 -> 0 | S36: =R36 -> 0 | T36: =S36 -> 0 | U36: =T36 -> 0 | V36: 0 | W36: 0 | X36: 0 | Y36: 0 | Z36: 0 | AA36: 0 | AB36: 0 | AC36: 0 | AD36: 0 | AE36: 0 | AF36: 0 | AG36: 0 | AH36: 0 | AI36: 0 | AJ36: 0 | AK36: 0 | AL36: 0 | AM36: 0 | AN36: 0 | AO36: 0 | AP36: 0 | AQ36: 0 | AR36: 0 | AS36: 0 | AT36: 0
A37: 37 | B37: Net Cash Flow after Debt Service | H37: =H34-(H35+H36) -> 0 | I37: 0 | J37: 0 | K37: 0 | L37: 0 | M37: 0 | N37: 0 | O37: =O34-(O35+O36) -> 0 | P37: 0 | Q37: =Q34-(Q35+Q36) -> 0 | R37: 0 | S37: 0 | T37: 0 | U37: 0 | V37: 0 | W37: 0 | X37: 0 | Y37: 0 | Z37: 0 | AA37: 0 | AB37: 0 | AC37: 0 | AD37: 0 | AE37: 0 | AF37: 0 | AG37: 0 | AH37: 0 | AI37: 0 | AJ37: 0 | AK37: 0 | AL37: 0 | AM37: 0 | AN37: 0 | AO37: 0 | AP37: 0 | AQ37: 0 | AR37: 0 | AS37: 0 | AT37: 0
A38: 38 | B38: Debt Service Coverage (DSCR) | H38: =H34/(H35+H36) ->  | O38: =IF(O35+O36=0,0,O34/(O35+O36)) -> 0 | P38: =IF(P35+P36=0,0,P34/(P35+P36)) -> 0 | Q38: =IF(Q35+Q36=0,0,Q34/(Q35+Q36)) -> 0 | R38: =IF(R35+R36=0,0,R34/(R35+R36)) -> 0 | S38: =IF(S35+S36=0,0,S34/(S35+S36)) -> 0 | T38: 0 | U38: 0 | V38: 0 | W38: 0 | X38: 0 | Y38: 0 | Z38: 0 | AA38: 0 | AB38: 0 | AC38: 0 | AD38: 0 | AE38: 0 | AF38: 0 | AG38: 0 | AH38: 0 | AI38: 0 | AJ38: 0 | AK38: 0 | AL38: 0 | AM38: 0 | AN38: 0 | AO38: 0 | AP38: 0 | AQ38: 0 | AR38: 0 | AS38: 0 | AT38: 0
H41: -1 | M41: Capital Expenditure Summary | Q41: =+Q10 -> 0 | R41: =Q41+1 -> 1 | S41: 2 | T41: 3 | U41: 4 | V41: 5 | W41: 6 | X41: 7 | Y41: 8 | Z41: 9 | AA41: 10 | AB41: 11 | AC41: 12 | AD41: 13 | AE41: 14 | AF41: 15 | AG41: 16 | AH41: 17 | AI41: 18 | AJ41: 19 | AK41: 20 | AL41: 21 | AM41: 22 | AN41: 23 | AO41: 24 | AP41: 25 | AQ41: 26 | AR41: 27 | AS41: 28 | AT41: 29
P42: Annual Planned Expenditures
P43: Annual Provision | Q43: =+Q30 -> 0 | R43: =+R30 -> 0 | S43: =+S30 -> 0 | T43: 0 | U43: 0 | V43: 0 | W43: 0 | X43: 0 | Y43: 0 | Z43: 0 | AA43: 0 | AB43: 0 | AC43: 0 | AD43: 0 | AE43: 0 | AF43: 0 | AG43: 0 | AH43: 0 | AI43: 0 | AJ43: 0 | AK43: 0 | AL43: 0 | AM43: 0 | AN43: 0 | AO43: 0 | AP43: 0 | AQ43: 0 | AR43: 0 | AS43: 0 | AT43: 0
M44: Beginning Balance R/R | P44: Outside Capital | R44: =+R37 -> 0 | S44: =+S37 -> 0 | T44: 0 | U44: 0 | V44: 0 | W44: 0 | X44: 0 | Y44: 0 | Z44: 0 | AA44: 0 | AB44: 0 | AC44: 0 | AD44: 0 | AE44: 0 | AF44: 0 | AG44: 0 | AH44: 0
M45: =+Input!C35 -> 0 | P45: Cumulative Reserve Balance | Q45: =+M45-Q42+Q43+Q44 -> 0 | R45: =+Q45-R42+R43+R44 -> 0 | S45: =+R45-S42+S43+S44 -> 0 | T45: 0 | U45: 0 | V45: 0 | W45: 0 | X45: 0 | Y45: 0 | Z45: 0 | AA45: 0 | AB45: 0 | AC45: 0 | AD45: 0 | AE45: 0 | AF45: 0 | AG45: 0 | AH45: 0 | AI45: 0 | AJ45: 0 | AK45: 0 | AL45: 0 | AM45: 0 | AN45: 0 | AO45: 0 | AP45: 0 | AQ45: 0 | AR45: 0 | AS45: 0 | AT45: 0
M47: Capital Plan Property Assessment
P48: Annual Capital Needs
P49: Pre-Transaction Capital Needs
P50: Operating Subsidy Need

Sheet Amortization
A4: Amortization Schedule
A6: Loan Amount: | C6: =Input!B29 -> 0
A7: Term: | C7: =Input!E31 -> 0.01 | D7: Years
A8: Index Rate: | C8: =Input!C33 -> 0
A9: Spread (includes 20 bp of servicing): | C9: =Input!D33 -> 0
A10: Interest Rate: | C10: =C8+C9 -> 0
A11: Servicing fee | C11: 0
A12: Debt Constant: | C12: =PMT(C10,C7,-1,0) -> 100
A13: Annual Payment: | C13: =C6*C12 -> 0
B15: Beginning | C15: Debt | G15: Total | H15: Ending
A16: Year | B16: Balance | C16: Service | D16: Interest | E16: Servicing | F16: Principal | G16: Payment | H16: Balance
A17: 1 | B17: =C6 -> 0 | C17: =C12*B17 -> 0 | D17: =B17*$C$8 -> 0 | E17: 0 | F17: =C17-D17 -> 0 | G17: =C17+E17 -> 0 | H17: =B17-F17 -> 0
A18: =A17+1 -> 2 | B18: =H17 -> 0 | C18: =IF(B18=0,0,C17) -> 0 | D18: =B18*$C$8 -> 0 | E18: =$C$11*B18 -> 0 | F18: =C18-D18-E18 -> 0 | G18: =C18+E18 -> 0 | H18: =B18-F18 -> 0
A19: 3 | B19: 0 | C19: 0 | D19: 0 | E19: 0 | F19: 0 | G19: 0 | H19: 0
A20: 4 | B20: 0 | C20: 0 | D20: 0 | E20: 0 | F20: 0 | G20: 0 | H20: 0
A21: 5 | B21: 0 | C21: 0 | D21: 0 | E21: 0 | F21: 0 | G21: 0 | H21: 0
A22: 6 | B22: 0 | C22: 0 | D22: 0 | E22: 0 | F22: 0 | G22: 0 | H22: 0
A23: 7 | B23: 0 | C23: 0 | D23: 0 | E23: 0 | F23: 0 | G23: 0 | H23: 0
A24: 8 | B24: 0 | C24: 0 | D24: 0 | E24: 0 | F24: 0 | G24: 0 | H24: 0
A25: 9 | B25: 0 | C25: 0 | D25: 0 | E25: 0 | F25: 0 | G25: 0 | H25: 0
A26: 10 | B26: 0 | C26: 0 | D26: 0 | E26: 0 | F26: 0 | G26: 0 | H26: 0
A27: 11 | B27: 0 | C27: 0 | D27: 0 | E27: 0 | F27: 0 | G27: 0 | H27: 0
A28: 12 | B28: 0 | C28: 0 | D28: 0 | E28: 0 | F28: 0 | G28: 0 | H28: 0
A29: 13 | B29: 0 | C29: 0 | D29: 0 | E29: 0 | F29: 0 | G29: 0 | H29: 0
A30: 14 | B30: 0 | C30: 0 | D30: 0 | E30: 0 | F30: 0 | G30: 0 | H30: 0
A31: 15 | B31: 0 | C31: 0 | D31: 0 | E31: 0 | F31: 0 | G31: 0 | H31: 0
A32: 16 | B32: 0 | C32: 0 | D32: 0 | E32: 0 | F32: 0 | G32: 0 | H32: 0
A33: 17 | B33: 0 | C33: 0 | D33: 0 | E33: 0 | F33: 0 | G33: 0 | H33: 0
A34: 18 | B34: 0 | C34: 0 | D34: 0 | E34: 0 | F34: 0 | G34: 0 | H34: 0
A35: 19 | B35: 0 | C35: 0 | D35: 0 | E35: 0 | F35: 0 | G35: 0 | H35: 0
A36: 20 | B36: 0 | C36: 0 | D36: 0 | E36: 0 | F36: 0 | G36: 0 | H36: 0
A37: 21 | B37: 0 | C37: 0 | D37: 0 | E37: 0 | F37: 0 | G37: 0 | H37: 0
A38: 22 | B38: 0 | C38: 0 | D38: 0 | E38: 0 | F38: 0 | G38: 0 | H38: 0
A39: 23 | B39: 0 | C39: 0 | D39: 0 | E39: 0 | F39: 0 | G39: 0 | H39: 0
A40: 24 | B40: 0 | C40: 0 | D40: 0 | E40: 0 | F40: 0 | G40: 0 | H40: 0 | I40: =SUM(G29:G40) -> 0
A41: 25 | B41: 0 | C41: 0 | D41: 0 | E41: 0 | F41: 0 | G41: 0 | H41: 0
A42: 26 | B42: 0 | C42: 0 | D42: 0 | E42: 0 | F42: 0 | G42: 0 | H42: 0
A43: 27 | B43: 0 | C43: 0 | D43: 0 | E43: 0 | F43: 0 | G43: 0 | H43: 0
A44: 28 | B44: 0 | C44: 0 | D44: 0 | E44: 0 | F44: 0 | G44: 0 | H44: 0
A45: 29 | B45: 0 | C45: 0 | D45: 0 | E45: 0 | F45: 0 | G45: 0 | H45: 0
A46: 30 | B46: 0 | C46: 0 | D46: 0 | E46: 0 | F46: 0 | G46: 0 | H46: 0

Sheet Rent Roll (hidden)
F1: 2011
B2: Rent | D2: Current | E2: Rent | F2: New | G2: %
A3: Br Size | B3: at 50% AMI | C3: No Units | D3: Rent | E3: Increase | F3: Base Rent | G3: Change | H3: Months | I3: GPR
A4: 1 | F4: =D4+E4 -> 0 | G4: =E4/D4 ->  | H4: 12 | I4: =C4*F4*H4 -> 0
A5: 2 | E5: 0 | F5: =D5+E5 -> 0 | H5: 12 | I5: =C5*F5*H5 -> 0
A6: 3 | E6: 0 | F6: =D6+E6 -> 0 | H6: 12 | I6: =C6*F6*H6 -> 0
I7: 0
I8: 0
I9: 0
I11: =SUM(I4:I9) -> 0
I12: =I11/12/28 -> 0
F13: 2012
B14: Rent* | D14: Current | E14: Rent | F14: New | G14: %
A15: Br Size | B15: at 50% AMI | C15: No Units | D15: Rent | E15: Increase | F15: Base Rent | G15: Change | H15: Months | I15: GPR
A16: 1 | B16: =B4*1.02 -> 0 | E16: 0 | F16: =D16+E16 -> 0 | G16: =E16/D16 ->  | H16: 6 | I16: =C16*F16*H16 -> 0
A17: 2 | B17: =B5*1.02 -> 0 | E17: 0 | F17: 0 | H17: 6 | I17: 0
A18: 3 | B18: =B6*1.02 -> 0 | E18: 0 | F18: 0 | H18: 6 | I18: 0
A19: 1 | D19: =F16 -> 0 | F19: 0 | H19: 6 | I19: 0
A20: 2 | D20: =F17 -> 0 | F20: 0 | H20: 6 | I20: 0
A21: 3 | D21: =F18 -> 0 | F21: 0 | H21: 6 | I21: 0
I23: =SUM(I16:I21) -> 0
I24: =I23/12/28 -> 0
F26: 2013*
B27: Rent* | D27: Current | E27: Rent | F27: New | G27: %
A28: Br Size | B28: at 50% AMI | C28: No Units | D28: Rent | E28: Increase | F28: Base Rent | G28: Change | H28: Months | I28: GPR
A29: 1 | B29: =B16*1.02 -> 0 | D29: =F19 -> 0 | E29: 0 | F29: =D29+E29 -> 0 | G29: =E29/D29 ->  | H29: 6 | I29: =C29*F29*H29 -> 0
A30: 2 | B30: =B17*1.02 -> 0 | D30: =F20 -> 0 | E30: 0 | F30: 0 | H30: 6 | I30: 0
A31: 3 | B31: =B18*1.02 -> 0 | D31: =F21 -> 0 | E31: 0 | F31: 0 | H31: 6 | I31: 0
A32: 1 | D32: =F29 -> 0 | F32: 0 | H32: 6 | I32: 0
A33: 2 | D33: =F30 -> 0 | F33: 0 | H33: 6 | I33: 0
A34: 3 | D34: =F31 -> 0 | F34: 0 | H34: 6 | I34: 0
I36: =SUM(I29:I34) -> 0
I37: =I36/12/28 -> 0
F39: 2014
B40: Rent* | D40: Current | E40: Rent | F40: New | G40: %
A41: Br Size | B41: at 50% AMI | C41: No Units | D41: Rent | E41: Increase | F41: Base Rent | G41: Change | H41: Months | I41: GPR
A42: 1 | B42: =B29*1.02 -> 0 | E42: 0 | F42: =D42+E42 -> 0 | G42: =E42/D42 ->  | H42: 6 | I42: =C42*F42*H42 -> 0
A43: 2 | B43: =B30*1.02 -> 0 | E43: 0 | F43: 0 | H43: 6 | I43: 0
A44: 3 | B44: =B31*1.02 -> 0 | D44: =F34 -> 0 | E44: 0 | F44: 0 | H44: 6 | I44: 0
D45: =D42 -> 0 | F45: 0 | H45: 6 | I45: 0
D46: =D43 -> 0 | F46: 0 | H46: 6 | I46: 0
D47: =F44 -> 0 | F47: 0 | H47: 6 | I47: 0
I49: =SUM(I42:I47) -> 0
I50: =I49/12/28 -> 0
F52: 2015
B53: Rent* | D53: Current | E53: Rent | F53: New | G53: %
A54: Br Size | B54: at 50% AMI | C54: No Units | D54: Rent | E54: Increase | F54: Base Rent | G54: Change | H54: Months | I54: GPR
A55: 1 | B55: =B42*1.02 -> 0 | D55: =F45 -> 0 | E55: 0 | F55: =D55+E55 -> 0 | G55: =E55/D55 ->  | H55: 6 | I55: =C55*F55*H55 -> 0
A56: 2 | B56: =B43*1.02 -> 0 | D56: =F46 -> 0 | E56: 0 | F56: 0 | H56: 6 | I56: 0
A57: 3 | B57: =B44*1.02 -> 0 | D57: =F47 -> 0 | E57: 0 | F57: 0 | H57: 6 | I57: 0
A58: 1 | D58: =F45 -> 0 | F58: 0 | H58: 6 | I58: 0
A59: 2 | D59: =F56 -> 0 | F59: 0 | H59: 6 | I59: 0
A60: 3 | D60: =F57 -> 0 | F60: 0 | H60: 6 | I60: 0
I62: =SUM(I55:I60) -> 0
I63: =I62/12/28 -> 0

Sheet Prepay Calc (hidden)
A1: Name: | B1: =IF(+Input!B1=0,"",+Input!B1) -> 
A2: Start Date
A3: Maturity date
A4: Remaining Term to Maturity (in months) | G4: =DAYS360(G2,G3)/360*12 -> 0
A5: Balance Prepaid | G5: =IF(G6=0,0,PV(G6/12,G4,-G9)) -> 0
A6: INTEREST RATE
A7: ORIGINAL TERM
A8: PAYMENTS PER YEAR | G8: 12
A9: CURRENT P&I
A10: REINVESTMENT RATE | G10: 0.04
A11: STIFF RATE | G11: 0.0021
F12: TEST CALC | G12: =PMT(G6/12,G4,-G5) -> 
H15: Interest Income | L15: PV OF
A16: Rem. | B16: Payment | C16: Beginning | D16: Total | E16: Interest | F16: Principal | G16: Ending | H16: @ | I16: @ | J16: Income | K16: PV | L16: Promised
A17: Periods | B17: Date | C17: Principal | D17: Payment | E17: Payment (A) | F17: Payment | G17: Principal | H17: =G6 -> 0 | I17: STIFF | J17: Differential | K17: Factor | L17: Interest
A18: 0 | B18: 2011-09-01 | C18: 0 | D18: 0 | E18: =C18*$G$6/12 -> 0 | F18: =D18-E18 -> 0 | G18: =+G5 -> 0 | H18: =E18 -> 0 | I18: =C18*$G$11/12 -> 0 | J18: =H18-I18 -> 0 | K18: =1/(1+$G$11/12)^A18 -> 1 | L18: =H18*K18 -> 0
A19: =A18+1 -> 1 | B19: 2011-10-01 | C19: =G18 -> 0 | D19: =+$G$9 -> 0 | E19: =C19*$G$6/12 -> 0 | F19: =D19-E19 -> 0 | G19: =C19-F19 -> 0 | H19: =E19 -> 0 | I19: =C19*$G$11/12 -> 0 | J19: =H19-I19 -> 0 | K19: =1/(1+$G$11/12)^A19 -> 0.9998250306 | L19: =H19*K19 -> 0
A20: 2 | B20: 2011-11-01 | C20: =G19 -> 0 | D20: 0 | E20: 0 | F20: 0 | G20: 0 | H20: 0 | I20: =C20*$G$11/12 -> 0 | J20: =H20-I20 -> 0 | K20: =1/(1+$G$11/12)^A20 -> 0.9996500919 | L20: =H20*K20 -> 0
A21: 3 | B21: 2011-12-01 | C21: 0 | D21: 0 | E21: 0 | F21: 0 | G21: 0 | H21: 0 | I21: 0 | J21: 0 | K21: 0.9994751837 | L21: 0
A22: 4 | B22: 2012-01-01 | C22: 0 | D22: 0 | E22: 0 | F22: 0 | G22: 0 | H22: 0 | I22: 0 | J22: 0 | K22: 0.9993003061 | L22: 0
A23: 5 | B23: 2012-02-01 | C23: 0 | D23: 0 | E23: 0 | F23: 0 | G23: 0 | H23: 0 | I23: 0 | J23: 0 | K23: 0.9991254592 | L23: 0
A24: 6 | B24: 2012-03-01 | C24: 0 | D24: 0 | E24: 0 | F24: 0 | G24: 0 | H24: 0 | I24: 0 | J24: 0 | K24: 0.9989506428 | L24: 0
A25: 7 | B25: 2012-04-01 | C25: 0 | D25: 0 | E25: 0 | F25: 0 | G25: 0 | H25: 0 | I25: 0 | J25: 0 | K25: 0.9987758571 | L25: 0
A26: 8 | B26: 2012-05-01 | C26: 0 | D26: 0 | E26: 0 | F26: 0 | G26: 0 | H26: 0 | I26: 0 | J26: 0 | K26: 0.9986011019 | L26: 0
A27: 9 | B27: 2012-06-01 | C27: 0 | D27: 0 | E27: 0 | F27: 0 | G27: 0 | H27: 0 | I27: 0 | J27: 0 | K27: 0.9984263772 | L27: 0
A28: 10 | B28: 2012-07-01 | C28: 0 | D28: 0 | E28: 0 | F28: 0 | G28: 0 | H28: 0 | I28: 0 | J28: 0 | K28: 0.9982516832 | L28: 0
A29: 11 | B29: 2012-08-01 | C29: 0 | D29: 0 | E29: 0 | F29: 0 | G29: 0 | H29: 0 | I29: 0 | J29: 0 | K29: 0.9980770197 | L29: 0
A30: 12 | B30: 2012-09-01 | C30: 0 | D30: 0 | E30: 0 | F30: 0 | G30: 0 | H30: 0 | I30: 0 | J30: 0 | K30: 0.9979023868 | L30: 0
A31: 13 | B31: 2012-10-01 | C31: 0 | D31: 0 | E31: 0 | F31: 0 | G31: 0 | H31: 0 | I31: 0 | J31: 0 | K31: 0.9977277844 | L31: 0
A32: 14 | B32: 2012-11-01 | C32: 0 | D32: 0 | E32: 0 | F32: 0 | G32: 0 | H32: 0 | I32: 0 | J32: 0 | K32: 0.9975532126 | L32: 0
A33: 15 | B33: 2012-12-01 | C33: 0 | D33: 0 | E33: 0 | F33: 0 | G33: 0 | H33: 0 | I33: 0 | J33: 0 | K33: 0.9973786714 | L33: 0
A34: 16 | B34: 2013-01-01 | C34: 0 | D34: 0 | E34: 0 | F34: 0 | G34: 0 | H34: 0 | I34: 0 | J34: 0 | K34: 0.9972041606 | L34: 0
A35: 17 | B35: 2013-02-01 | C35: 0 | D35: 0 | E35: 0 | F35: 0 | G35: 0 | H35: 0 | I35: 0 | J35: 0 | K35: 0.9970296804 | L35: 0
A36: 18 | B36: 2013-03-01 | C36: 0 | D36: 0 | E36: 0 | F36: 0 | G36: 0 | H36: 0 | I36: 0 | J36: 0 | K36: 0.9968552308 | L36: 0
A37: 19 | B37: 2013-04-01 | C37: 0 | D37: 0 | E37: 0 | F37: 0 | G37: 0 | H37: 0 | I37: 0 | J37: 0 | K37: 0.9966808116 | L37: 0
A38: 20 | B38: 2013-05-01 | C38: 0 | D38: 0 | E38: 0 | F38: 0 | G38: 0 | H38: 0 | I38: 0 | J38: 0 | K38: 0.996506423 | L38: 0
A39: 21 | B39: 2013-06-01 | C39: 0 | D39: 0 | E39: 0 | F39: 0 | G39: 0 | H39: 0 | I39: 0 | J39: 0 | K39: 0.9963320649 | L39: 0
A40: 22 | B40: 2013-07-01 | C40: 0 | D40: 0 | E40: 0 | F40: 0 | G40: 0 | H40: 0 | I40: 0 | J40: 0 | K40: 0.9961577373 | L40: 0
A41: 23 | B41: 2013-08-01 | C41: 0 | D41: 0 | E41: 0 | F41: 0 | G41: 0 | H41: 0 | I41: 0 | J41: 0 | K41: 0.9959834402 | L41: 0
A42: 24 | B42: 2013-09-01 | C42: 0 | D42: 0 | E42: 0 | F42: 0 | G42: 0 | H42: =E42 -> 0 | I42: =C42*$G$10/12 -> 0 | J42: =H42-I42 -> 0 | K42: =1/(1+$G$10/12)^A42 -> 0.9232391639 | L42: =J42*K42 -> 0
A43: 25 | B43: 2013-10-01 | C43: 0 | D43: 0 | E43: 0 | F43: 0 | G43: 0 | H43: 0 | I43: 0 | J43: 0 | K43: 0.9201719242 | L43: 0
A44: 26 | B44: 2013-11-01 | C44: 0 | D44: 0 | E44: 0 | F44: 0 | G44: 0 | H44: 0 | I44: 0 | J44: 0 | K44: 0.9171148746 | L44: 0
A45: 27 | B45: 2013-12-01 | C45: 0 | D45: 0 | E45: 0 | F45: 0 | G45: 0 | H45: 0 | I45: 0 | J45: 0 | K45: 0.9140679813 | L45: 0
A46: 28 | B46: 2014-01-01 | C46: 0 | D46: 0 | E46: 0 | F46: 0 | G46: 0 | H46: 0 | I46: 0 | J46: 0 | K46: 0.9110312106 | L46: 0
A47: 29 | B47: 2014-01-01 | C47: =G46 -> 0 | D47: 0 | E47: =C47*$G$6/12 -> 0 | F47: =D47-E47 -> 0 | G47: =C47-F47 -> 0 | H47: 0 | I47: 0 | J47: 0 | K47: 0.9080045288 | L47: 0
B48: Totals | D48: =SUM(D18:D46) -> 0 | E48: =SUM(E18:E46) -> 0 | F48: =SUM(F18:F46) -> 0 | H48: =SUM(H18:H46) -> 0 | I48: =SUM(I18:I46) -> 0 | J48: =SUM(J18:J46) -> 0 | L48: =SUM(L18:L46) -> 0
A50: (A) | B50: PV of 24 months prepaid interest | E50: =SUM(L17:L42) -> 0
A51: (B) | B51: PV of remaining interest. | E51: =SUM(L43:L47) -> 0
A52: (C) | B52: Total Premium | E52: =E50+E51 -> 0
A53: (D) | B53: Prepaid Balance | E53: =G5 -> 0
B54: Total Due | E54: =E52+E53 -> 0

Sheet Cap Rate (hidden)
B4: Determining an implied Cap Rate for Valuation calculated within the model.
D6: Return on Equity | E6: Mortage
C7: CHFA Internal | D7: Allowed by | E7: Constant
C8: Policy LTV | D8: Regulatory | E8: Used for Debt | F8: Cap
C9: (Underwriting) | D9: Agreement | E9: Service | F9: Rate
B10: Debt (LOAN) | C10: 0.8 | E10: =+Amortization!C12 -> 100 | F10: =C10*E10 -> 80
B11: Equity | C11: =1-C10 -> 0.2 | D11: 0.1 | F11: =C11*D11 -> 0.02
B12: Total | C12: =C10+C11 -> 1 | F12: =F10+F11 -> 80.02
B13: Stabilized
B14: NOI | F14: =+Cashflow!R34 -> 0
B15: Estimated Value | F15: =F14/F12 -> 0
B17: Loan | F17: =+Input!B29 -> 0
B18: LOAN TO VALUE | F18: =F17/F15 ->  | G18: LTV

Sheet Property Valuation (hidden)
C2: DESK TOP VALUATION OF PROPERTY
C3: CHFA's cost of capital Index | E3: 0.04
C4: Property default spread***** | E4: 0.015
C5: Total Discount rate applied to cash flows | E5: =E3+E4 -> 0.055
G6: PV of | H6: Col C * Col F
G7: The | H7: PV of
B8: 0 | C8: NOI**** | D8: TerminaL Value** | F8: PVIF | G8: Terminal Value | H8: NOI's
B9: 1 | C9: =Cashflow!Q34 -> 0 | F9: =1/(1+$E$5)^B9 -> 0.9478672986 | H9: =C9*F9 -> 0
B10: =B9+1 -> 2 | C10: =Cashflow!R$34 -> 0 | F10: =1/(1+$E$5)^B10 -> 0.8984524157 | H10: =C10*F10 -> 0
B11: =B10+1 -> 3 | C11: =Cashflow!S34 -> 0 | F11: 0.8516136642 | H11: 0
B12: 4 | C12: =Cashflow!T34 -> 0 | F12: 0.8072167433 | H12: 0
B13: 5 | C13: =Cashflow!U34 -> 0 | F13: 0.7651343538 | H13: 0
B14: 6 | C14: =Cashflow!V34 -> 0 | F14: 0.725245833 | H14: 0
B15: 7 | C15: =Cashflow!W34 -> 0 | F15: 0.6874368086 | H15: 0
B16: 8 | C16: =Cashflow!X34 -> 0 | F16: 0.6515988707 | H16: 0
B17: 9 | C17: =Cashflow!Y34 -> 0 | F17: 0.6176292613 | H17: 0
B18: 10 | C18: =Cashflow!Z34 -> 0 | D18: =C19/F23 -> 0 | F18: 0.5854305794 | G18: =D18*F18 -> 0 | H18: =(C18*F18)+G18 -> 0
B19: 11 | C19: =Cashflow!AA34 -> 0
C20: ESTIMATED VALUE ****** | F20: PV | H20: =SUM(H9:H18) -> 0
C23: Discount Rate + spread for a declining NOI* = Term CAP*** | F23: =(E5-(-0.02)) -> 0.075
C24: NOTES
C25: * Reasonable to use the 2% growth rate in rent
C27: ** Terminal Value in year 10 = 11th year NOI/Terminal Cap rate. This terminal value is then discounted at the
C28: total discount rate developed in cell E5
C29: *** The terminal cap rate is based on the formula: (CHFA's required rate of return - growth rate in rental income).
C30: This computation is applicable when the average long run growth rate in NOI is expected to be declining. This is the case in most of our deals
C31: where NOI is declining and eventually crosses operating expenses (otherwise known as "it crashes").
C32: The term cap rate should be higher in older buildings as they depreciate faster.
C33: **** NOI is before debt service, which is the correct measure for valuing properties.
C34: ***** Property default spread captures the risk in the cash flows. If the property has section 8, the spread may be lowered to 1%. However,
C35: The term cap rate should be increased by that amount to reflect the uncertainty of a HAP renewal in the out years.
C36: ****** Estimated Value = PV of the NOI's + the Present Value of the property.

Sheet Notes
A1: Summary Master
B2: Input numbers into the yellow areas, the blue areas will adjust accordingly.
A4: Capital Needs
B5: Input manually.
A7: Summary Back-up
B8: All formulas. Print to see % change scenarios
A10: Current RR
B11: Input tenant information in columns 1,2,4,7
B12: Columns S & U can be used to calculate mid year rent increases.
C13: (mgt plan will need to be adapted.)
A14: Working RR
B15: Formulas
B16: Columns S & U can be used to calculate mid year rent increases.
A17: Mgt Plan
B18: Enter #'s where appropriate. Rent area might need to be adjusted for mid year increases.
A20: Cash Flow
A21: 0.3
A22: 0.31
A23: 0.32
A24: 0.33
A25: 0.34
A26: 0.35

Sheet Sheet1
